Workbook

Sheet Magyarázat_Fund.
A1: A ….Fund… és a …Pont... jelzésű program (munkalap)
A3: A …Fund az EN 81 "fundamentarista", szó szerinti értelmezése.
A4: Ez a sín szilárdsági ellenőrzésére vonatkozik.
A5: Az x-irányú erők meghatározásakor a képletben osztóként szerepel a sínek száma.
A6: A két sínt azonban nem azonos nagyságú vízszintes erő terheli.
A7: A puttonyos vázszerkezet két főtartója és két konzola egymáshoz képest
A8: nem merev, könnyen elcsavarodhat.
A9: A két konzolt különböző nagyságú függőleges erő, mint reakcióerő terheli, ezért
A10: a vízszintes erők is különböznek.
G21: A = B
G23: A < B
A25: A terhelésre vonatkozóan a reakcióerők meghatározása:
B27: y = BKS/2 + yC + 1/8*TK
B29: B = GQ * y / BKS = GQ * (BKS/2 + yC + 1/8*TK) / BKS =
B30: = GQ * (4*BKS + 8*yC + TK) / 8*BKS =
A32: = | B32: GQ * [ 0,5 + yC / BKS + TK / 8*BKS]
B34: Terhelési tényező (az egyforma eloszláshoz tartozó 0,5 helyett):
B36: zQ = 0,5 + yC / BKS + TK / 8*BKS
A38: A fülke önsúlya (és egyéb, rajta függő súlyok) sem egyformán terhelik a két konzolt.
B40: Ekkor : | D40: y = BKS/2 + yS
B42: B = GK * y / BKS = GK * (BKS/2 + yS) / BKS = GK * (0,5 + yS / BKS)
B44: A terhelési tényező (az egyforma eloszláshoz tartozó 0,5 helyett):
B46: zK = 0,5 + yS / BKS
A48: Hasonló képpen a küszöbterhelésre vonatkozóan:
B66: B = Fw * [ (yw + BKS / 2) + GK * (yS + BKS / 2)] / BKS
B68: a terhelési tényező a küszöbterhelésre vonatkozóan 0,5 helyett:
B70: zw = 0,5 + yw / BKS
B72: a fülkesúlyra vonatkozóan azonos az előzővel.
A74: Az EN 81 és a …Fund… program ezeket nem veszi figyelembe, hanem a két sínre
A75: egyforma terhelést feltételez.
A77: A …Pont… program (munkalap) a fenti, egyenlőtlen eloszlást figyelembe veszi.

Sheet OMEGA
F1: Rm = | G1: 400
F2: l = HF / i min = | G2: 136.58
A4: A keresőszámok: | C4: A karcsúsági tényező kerekített értéke: | G4: =ROUNDDOWN(G2,-1) -> 130
C5: A maradék: | G5: =ROUND(G2-G4,0) -> 7
A6: Táblázatból:
A7: A kihajlási szám RM = 370 N/mm2 esetén: | F7: w 370 = | G7: =VLOOKUP(G4,A15:K38,G5+2) -> 3.17
A8: A kihajlási szám RM = 520 N/mm2 esetén: | F8: w 520 = | G8: =VLOOKUP(G4,A43:K66,G5+2) -> 4.75
A9: A kihajlási szám az adott szakítószilárdságú anyag esetén:
F11: w = [(w 520 - w 370) * (RM - 370) / (520 - 370)] + w 370 = | G11: =((G8-G7)*(G1-370)/150)+G7 -> 3.486
A13: Az w kihajlási számok a l függvényében, RM = 370 N/mm2 esetén
A14: l | B14: 0 | C14: 1 | D14: 2 | E14: 3 | F14: 4 | G14: 5 | H14: 6 | I14: 7 | J14: 8 | K14: 9
A15: 20 | B15: 1.04 | C15: 1.04 | D15: 1.04 | E15: 1.05 | F15: 1.05 | G15: 1.06 | H15: 1.06 | I15: 1.07 | J15: 1.07 | K15: 1.08
A16: 30 | B16: 1.08 | C16: 1.09 | D16: 1.09 | E16: 1.1 | F16: 1.1 | G16: 1.11 | H16: 1.11 | I16: 1.12 | J16: 1.13 | K16: 1.13
A17: 40 | B17: 1.14 | C17: 1.14 | D17: 1.15 | E17: 1.16 | F17: 1.16 | G17: 1.17 | H17: 1.18 | I17: 1.19 | J17: 1.19 | K17: 1.2
A18: 50 | B18: 1.21 | C18: 1.22 | D18: 1.23 | E18: 1.23 | F18: 1.24 | G18: 1.25 | H18: 1.26 | I18: 1.27 | J18: 1.28 | K18: 1.29
A19: 60 | B19: 1.3 | C19: 1.31 | D19: 1.32 | E19: 1.33 | F19: 1.34 | G19: 1.35 | H19: 1.36 | I19: 1.37 | J19: 1.39 | K19: 1.4
A20: 70 | B20: 1.41 | C20: 1.42 | D20: 1.44 | E20: 1.45 | F20: 1.46 | G20: 1.48 | H20: 1.49 | I20: 1.5 | J20: 1.52 | K20: 1.53
A21: 80 | B21: 1.55 | C21: 1.56 | D21: 1.58 | E21: 1.59 | F21: 1.61 | G21: 1.62 | H21: 1.64 | I21: 1.66 | J21: 1.68 | K21: 1.69
A22: 90 | B22: 1.71 | C22: 1.73 | D22: 1.74 | E22: 1.76 | F22: 1.78 | G22: 1.8 | H22: 1.82 | I22: 1.84 | J22: 1.86 | K22: 1.88
A23: 100 | B23: 1.9 | C23: 1.92 | D23: 1.94 | E23: 1.96 | F23: 1.98 | G23: 2 | H23: 2.02 | I23: 2.05 | J23: 2.07 | K23: 2.09
A24: 110 | B24: 2.11 | C24: 2.14 | D24: 2.16 | E24: 2.18 | F24: 2.21 | G24: 2.23 | H24: 2.27 | I24: 2.31 | J24: 2.35 | K24: 2.39
A25: 120 | B25: 2.43 | C25: 2.47 | D25: 2.51 | E25: 2.55 | F25: 2.6 | G25: 2.64 | H25: 2.68 | I25: 2.72 | J25: 2.77 | K25: 2.81
A26: 130 | B26: 2.85 | C26: 2.9 | D26: 2.94 | E26: 2.99 | F26: 3.03 | G26: 3.08 | H26: 3.12 | I26: 3.17 | J26: 3.22 | K26: 3.26
A27: 140 | B27: 3.31 | C27: 3.36 | D27: 3.41 | E27: 3.45 | F27: 3.5 | G27: 3.55 | H27: 3.6 | I27: 3.65 | J27: 3.7 | K27: 3.75
A28: 150 | B28: 3.8 | C28: 3.85 | D28: 3.9 | E28: 3.95 | F28: 4 | G28: 4.06 | H28: 4.11 | I28: 4.16 | J28: 4.22 | K28: 4.29
A29: 160 | B29: 4.32 | C29: 4.38 | D29: 4.43 | E29: 4.49 | F29: 4.54 | G29: 4.6 | H29: 4.65 | I29: 4.71 | J29: 4.77 | K29: 4.82
A30: 170 | B30: 4.88 | C30: 4.94 | D30: 5 | E30: 5.05 | F30: 5.11 | G30: 5.17 | H30: 5.23 | I30: 5.29 | J30: 5.35 | K30: 5.41
A31: 180 | B31: 5.47 | C31: 5.53 | D31: 5.59 | E31: 5.66 | F31: 5.72 | G31: 5.78 | H31: 5.84 | I31: 5.91 | J31: 5.97 | K31: 6.03
A32: 190 | B32: 6.1 | C32: 6.16 | D32: 6.23 | E32: 6.29 | F32: 6.36 | G32: 6.42 | H32: 6.49 | I32: 6.55 | J32: 6.62 | K32: 6.69
A33: 200 | B33: 6.75 | C33: 6.82 | D33: 6.89 | E33: 6.96 | F33: 7.03 | G33: 7.1 | H33: 7.17 | I33: 7.24 | J33: 7.31 | K33: 7.38
A34: 210 | B34: 7.45 | C34: 7.52 | D34: 7.59 | E34: 7.66 | F34: 7.73 | G34: 7.81 | H34: 7.88 | I34: 7.95 | J34: 8.03 | K34: 8.1
A35: 220 | B35: 8.17 | C35: 8.25 | D35: 8.32 | E35: 8.4 | F35: 8.47 | G35: 8.55 | H35: 8.63 | I35: 8.7 | J35: 8.78 | K35: 8.86
A36: 230 | B36: 8.93 | C36: 9.01 | D36: 9.09 | E36: 9.17 | F36: 9.25 | G36: 9.33 | H36: 9.41 | I36: 9.49 | J36: 9.57 | K36: 9.65
A37: 240 | B37: 9.73 | C37: 9.81 | D37: 9.89 | E37: 9.97 | F37: 10.05 | G37: 10.14 | H37: 10.22 | I37: 10.3 | J37: 10.39 | K37: 10.47
A38: 250 | B38: 10.55
A41: Az w kihajlási számok a l függvényében, RM = 520 N/mm2 esetén
A42: l | B42: 0 | C42: 1 | D42: 2 | E42: 3 | F42: 4 | G42: 5 | H42: 6 | I42: 7 | J42: 8 | K42: 9
A43: 20 | B43: 1.06 | C43: 1.06 | D43: 1.07 | E43: 1.07 | F43: 1.08 | G43: 1.08 | H43: 1.09 | I43: 1.09 | J43: 1.1 | K43: 1.11
A44: 30 | B44: 1.11 | C44: 1.12 | D44: 1.12 | E44: 1.13 | F44: 1.14 | G44: 1.15 | H44: 1.15 | I44: 1.16 | J44: 1.17 | K44: 1.18
A45: 40 | B45: 1.19 | C45: 1.19 | D45: 1.2 | E45: 1.21 | F45: 1.22 | G45: 1.23 | H45: 1.24 | I45: 1.25 | J45: 1.26 | K45: 1.27
A46: 50 | B46: 1.28 | C46: 1.3 | D46: 1.31 | E46: 1.32 | F46: 1.33 | G46: 1.35 | H46: 1.36 | I46: 1.37 | J46: 1.39 | K46: 1.4
A47: 60 | B47: 1.41 | C47: 1.43 | D47: 1.44 | E47: 1.46 | F47: 1.48 | G47: 1.49 | H47: 1.51 | I47: 1.53 | J47: 1.54 | K47: 1.56
A48: 70 | B48: 1.58 | C48: 1.6 | D48: 1.62 | E48: 1.64 | F48: 1.66 | G48: 1.68 | H48: 1.7 | I48: 1.72 | J48: 1.74 | K48: 1.77
A49: 80 | B49: 1.79 | C49: 1.81 | D49: 1.83 | E49: 1.86 | F49: 1.88 | G49: 1.91 | H49: 1.93 | I49: 1.95 | J49: 1.98 | K49: 2.01
A50: 90 | B50: 2.05 | C50: 2.1 | D50: 2.1 | E50: 2.19 | F50: 2.24 | G50: 2.29 | H50: 2.33 | I50: 2.38 | J50: 2.43 | K50: 2.48
A51: 100 | B51: 2.53 | C51: 2.58 | D51: 2.64 | E51: 2.69 | F51: 2.74 | G51: 2.79 | H51: 2.85 | I51: 2.9 | J51: 2.95 | K51: 3.01
A52: 110 | B52: 3.06 | C52: 3.12 | D52: 3.18 | E52: 3.23 | F52: 3.29 | G52: 3.35 | H52: 3.41 | I52: 3.47 | J52: 3.53 | K52: 3.59
A53: 120 | B53: 3.65 | C53: 3.71 | D53: 3.77 | E53: 3.83 | F53: 3.89 | G53: 3.96 | H53: 4.02 | I53: 4.09 | J53: 4.15 | K53: 4.22
A54: 130 | B54: 4.28 | C54: 4.35 | D54: 4.41 | E54: 4.48 | F54: 4.55 | G54: 4.62 | H54: 4.69 | I54: 4.75 | J54: 4.82 | K54: 4.89
A55: 140 | B55: 4.96 | C55: 5.04 | D55: 5.11 | E55: 5.18 | F55: 5.25 | G55: 5.33 | H55: 5.4 | I55: 5.47 | J55: 5.55 | K55: 5.62
A56: 150 | B56: 5.7 | C56: 5.78 | D56: 5.85 | E56: 5.93 | F56: 6.01 | G56: 6.09 | H56: 6.16 | I56: 6.24 | J56: 6.32 | K56: 6.4
A57: 160 | B57: 6.48 | C57: 6.57 | D57: 6.65 | E57: 6.73 | F57: 6.81 | G57: 6.9 | H57: 6.98 | I57: 7.06 | J57: 7.15 | K57: 7.23
A58: 170 | B58: 7.32 | C58: 7.41 | D58: 7.49 | E58: 7.58 | F58: 7.67 | G58: 7.76 | H58: 7.85 | I58: 7.94 | J58: 8.03 | K58: 8.12
A59: 180 | B59: 8.21 | C59: 8.3 | D59: 8.39 | E59: 8.43 | F59: 8.58 | G59: 8.67 | H59: 8.76 | I59: 8.86 | J59: 8.95 | K59: 9.05
A60: 190 | B60: 9.14 | C60: 9.24 | D60: 9.34 | E60: 9.44 | F60: 9.53 | G60: 9.63 | H60: 9.73 | I60: 9.83 | J60: 9.93 | K60: 10.03
A61: 200 | B61: 10.13 | C61: 10.23 | D61: 10.34 | E61: 10.44 | F61: 10.54 | G61: 10.65 | H61: 10.75 | I61: 10.85 | J61: 10.96 | K61: 11.06
A62: 210 | B62: 11.17 | C62: 11.28 | D62: 11.38 | E62: 11.49 | F62: 11.6 | G62: 11.71 | H62: 11.82 | I62: 11.93 | J62: 12.04 | K62: 12.15
A63: 220 | B63: 12.26 | C63: 12.37 | D63: 12.48 | E63: 12.6 | F63: 12.71 | G63: 12.82 | H63: 12.94 | I63: 13.05 | J63: 13.17 | K63: 13.28
A64: 230 | B64: 13.4 | C64: 13.52 | D64: 13.63 | E64: 13.75 | F64: 13.87 | G64: 13.99 | H64: 14.11 | I64: 14.23 | J64: 14.35 | K64: 14.47
A65: 240 | B65: 14.59 | C65: 14.71 | D65: 14.83 | E65: 14.96 | F65: 15.08 | G65: 15.2 | H65: 15.33 | I65: 15.45 | J65: 15.58 | K65: 15.71
A66: 250 | B66: 15.83

Sheet Pontos
L1: FEL | Y1: 1 | AX1: 1
Y2: 2 | AP2: - | AX2: 2
Y3: 3 | AX3: 3
Y4: 4 | AX4: 4
Y5: 5 | AX5: 5
A6: 1 | B6: 2 | C6: 3 | D6: 4 | E6: 5 | F6: 6 | G6: 7 | H6: 8 | I6: 9 | J6: 10 | K6: 11 | M6: 13 | N6: 14 | O6: 15 | P6: 16 | Q6: 17 | R6: 18 | S6: 19 | T6: 20 | U6: 21 | V6: 22 | W6: 23 | X6: 24 | Y6: 6 | AC6: 29 | AD6: 30 | AE6: 31 | AF6: 32 | AG6: 33 | AH6: 34 | AI6: 35 | AJ6: 36 | AK6: 37 | AL6: 38 | AM6: 39 | AN6: 40 | AO6: 16 | AP6: 17 | AQ6: 18 | AR6: 19 | AS6: 20 | AT6: 21 | AU6: 22 | AV6: 23 | AW6: 24 | AX6: 6
A7: Beépítési hely: | D7: Xxxx | N7: 0 | O7: 0 | P7: 0 | Q7: 0 | R7: 0 | S7: 0 | Y7: 7 | AX7: 7
A8: Terhelési- és egyéb adatok: | N8: 0 | O8: 0 | P8: 0 | Q8: 0 | R8: 0 | S8: 0 | Y8: 8 | AP8: mm | AX8: 8
A9: Teherbírás: | F9: GQ = | G9: 1125 | H9: kg | I9: 0 | J9: 12 | N9: 0 | O9: 0 | P9: 0 | Q9: 0 | R9: 0 | S9: 0 | Y9: 9 | AI9: =ROUND(GQ/75,0) -> 15 | AJ9: személy | AX9: 9
A10: Ha a rakodógép behajt a fülkébe, annak tömege: | F10: GT = | G10: 0 | H10: kg | I10: GQr | N10: 0 | O10: 0 | P10: 0 | Q10: 0 | R10: 0 | S10: 0 | Y10: 10 | AP10: mm | AX10: 10
A11: Névleges sebesség: | F11: VKN = | G11: 1 | H11: m/s | N11: 0 | O11: 0 | P11: 0 | Q11: 0 | R11: 0 | S11: 0 | Y11: 11 | AX11: 11
A12: Összes megállók száma | F12: Nö= | G12: 6 | H12: db | J12: 7 | N12: 0 | O12: 0 | P12: 0 | Q12: 0 | R12: 0 | S12: 0 | Y12: 12 | AI12: 2 | AJ12: 12 | AX12: 12
B13: A haladási megállók száma | F13: Nh= | G13: 7 | H13: db | N13: 0 | O13: 0 | P13: 0 | Q13: 0 | R13: 0 | S13: 0 | Y13: 13 | AK13: FEL | AX13: 13
A14: Az óránkénti indítások száma: | F14: ZKH = | G14: 240 | H14: 1/h | N14: 0 | O14: 0 | P14: 0 | Q14: 0 | R14: 0 | S14: 0 | Y14: 14 | AX14: 14
A15: Emelési magasság (max. 42,0 m): | F15: HQ = | G15: 24 | H15: m | Y15: 15 | AL15: HI= | AM15: 0 | AX15: 15
A16: Süllyeszték mélysége: | F16: HSG = | G16: 1.4 | H16: m | N16: 0 | O16: 0 | P16: 0 | Q16: 0 | R16: 0 | S16: 0 | Y16: 16 | AX16: 16
A17: Fejmagasság: | F17: HSK = | G17: 3.72 | H17: m | N17: 0 | O17: 0 | P17: 0 | Q17: 0 | R17: 0 | S17: 0 | Y17: 17 | AX17: 17
A18: Aknamagasság: | F18: HS = | G18: =G15+G16+G17 -> 29.12 | H18: m | N18: 0 | O18: 0 | P18: 0 | Q18: 0 | R18: 0 | S18: 0 | Y18: 18 | AX18: 18
A19: Fülke tömege: | E19: GK = | F19: 750 | G19: 720 | H19: kg | N19: 0 | O19: 0 | P19: 0 | Q19: 0 | R19: 0 | S19: 0 | Y19: 19 | AI19: GKr | AJ19: 810 | AX19: 19
A20: Kiegyenlítési tényező: | F20: KG = | G20: 0.5 | H20: - | N20: 0 | O20: 0 | P20: 0 | Q20: 0 | R20: 0 | S20: 0 | Y20: 20 | AI20: GGr | AJ20: =KG*GQr+GKr+(NKk*GR+NGk*GR) -> 810 | AX20: 20
A21: Ellensúly tömege: | E21: GG = KG*GQ + GK = | F21: =KG*GQ+GK -> 1282.5 | G21: =IF(KZU>1,F21+(NGk*GRE),F21) -> 1282.5 | H21: kg | N21: 0 | O21: 0 | P21: 0 | Q21: 0 | R21: 0 | S21: 0 | Y21: 21 | AX21: 21
A22: Hajtómű tömege: | F22: GW = | G22: 433 | H22: kg | N22: 0 | O22: 0 | P22: 0 | Q22: 0 | R22: 0 | S22: 0 | Y22: 22 | AX22: 22
A23: Géptartó gerenda tömege: | F23: GWR= | G23: 65 | H23: kg | N23: 0 | O23: 0 | P23: 0 | Q23: 0 | R23: 0 | S23: 0 | Y23: 23 | AK23: LE | AX23: 23
A24: Hajtótárcsa tömege: | F24: GD = | G24: 50 | H24: kg | Y24: 24 | AX24: 24
A25: A függesztőkötél névleges átmérője: | F25: DZ = | G25: 9 | H25: mm | Y25: 25 | AX25: 25
A26: Kötélszerkezet: | C26: =VLOOKUP(DZ,kötél!A1:M24,2) -> Seale | G26: 1.094240783 | Y26: 26 | AI26: 4 | AM26: LE | AX26: 26
A27: A függesztőkötél darabszáma: | F27: ZZ = | G27: 4 | H27: db | L27: FZ120 | Y27: 27 | AK27: FZ120 | AM27: F120( Fülke) | AN27: 0
F28: GZM1 = | G28: =VLOOKUP(DZ,kötél!D2:M24,10) -> 0.29 | H28: kg/m | L28: FZ220 | Y28: 28 | AJ28: =LN(AN27/AN28)*0.2 ->  | AK28: FZ220 | AM28: F220 (Ellensúly) | AN28: 0
F29: sB = | G29: 1570 | H29: N/mm2 | Y29: 29 | AM29: GQr
A30: Egy kötél min. szakítóereje: | F30: FZM = | G30: =VLOOKUP(DZ,kötél!D2:M24,9)*1000 -> 37300 | H30: N | Y30: 30 | AM30: számított e
A31: Hajómű és keréktárcsa távolsága (Csak alsógép esetén) | F31: HHKf= | G31: 0 | H31: m | AM31: emZRN*bD
A32: Hajómű és keréktárcsa távolsága (Csak alsógép esetén) | F32: HHKe= | G32: 24 | H32: m | AM32: K1
A33: Fülke/ellensúly helyzet távolsága az emelési magasság közepétől (y=HQ/2)=
E34: Fülke fel | F34: y_fel= | G34: 0 | H34: m | AM34: S=F120-F220
E35: Fülke le | F35: y_le= | G35: 24 | H35: m | AM35: N=abs(S)/μZRN | AN35: =ABS(AN34)/VLOOKUP(HOR,$A$261:$H$265,8) -> 0 | AO35: 0 | AP35: 0 | AQ35: 0 | AR35: 0 | AS35: 0 | AT35: 0 | AU35: 0 | AV35: 0 | AW35: 0 | AY35: 0 | AZ35: 0 | BA35: 0 | BB35: =ABS(BB34)/VLOOKUP(HOR,$A$261:$H$265,8) -> 0 | BC35: 0 | BD35: 0 | BE35: 0 | BF35: 0 | BG35: 0
A36: Függesztő kötél kiegyenlítetlen hosszának tömege: | AL36: surlódási kúpszög= | AM36: tan(S/N) | AN36: =DEGREES(TAN(ABS(AN34)/AN35)) ->  | AO36: =DEGREES(TAN(ABS(AO34)/AO35)) ->  | AY36: 0 | AZ36: 0 | BA36: 0 | BB36: =DEGREES(TAN(ABS(BB34)/BB35)) -> 
A37: Fülke oldal: | F37: GZf1 = GZM1 * ZZ *HQ/2+/-y) = | G37: =_GZM1*ZZ*y_fel -> 0 | H37: kg | AM37: ln(F120/F220)/μ=β | AN37: 205.5634386 | AO37: 207.5516297 | AP37: 209.5448152 | AQ37: 211.542975 | AR37: 213.5462007 | AS37: 215.5545476 | AT37: 217.5681084 | AU37: 219.5868659 | AV37: 221.6109142 | AW37: 224.0468671 | AX37: 224.0468671 | AY37: 0 | AZ37: 0
A38: Ellensúly oldal: | F38: GZe2= | G38: =_GZM1*ZZ*y_le -> 27.84 | H38: kg | AK38: y_fel | AM38: Horony nyomás | AN38: =$G$322 ->  | AO38: =$G$321 ->  | AP38: N/mm2 | AY38: 0 | AZ38: 0
A39: Alsógép. A fülke oldalon | E39: GZAf=GZM'*ZZ*HHKf | G39: =_GZM1*ZZ*HHKf -> 0 | H39: kg | L39: 24 | AK39: 25.5 | AM39: Kötélsúly | AY39: 0 | AZ39: 0
A40: Alsógép az ellensúly oldalon | E40: GZAe=GZM'*ZZ*HHKe | G40: =_GZM1*ZZ*HHKe -> 27.84 | H40: kg | AM40: Motor telj (kW) | AN40: =(ABS(AN34)*VKN)/(1000*0.98*0.85) -> 0 | AO40: 0 | AP40: 0 | AQ40: 0 | AR40: 0 | AS40: 0 | AT40: 0 | AU40: 0 | AV40: 0 | AW40: 0 | AX40: 0 | AY40: 0 | AZ40: 0 | BA40: =(ABS(BA34)*VKN)/(1000*0.98*0.85) -> 0 | BB40: 0 | BC40: 0 | BD40: 0 | BE40: 0 | BF40: 0 | BG40: 0
A41: Függesztő kötél teljes hossz. tömege: | F41: GZS= GZM1 * ZZ * (HS + HSK) * KZU = | G41: =_GZM1*ZZ*(HS+HSK)*KZU -> 38.0944 | H41: kg | AM41: Nyomaték(Nm) | AN41: =ABS(AN34)*((DD/1000)/2) -> 0 | AO41: 0 | AP41: 0 | AQ41: 0 | AR41: 0 | AS41: 0 | AT41: 0 | AU41: 0 | AV41: 0 | AW41: 0 | AX41: 0 | AY41: 0 | AZ41: 0 | BA41: =BA34*((DD/1000)/2) -> 0 | BB41: 0 | BC41: 0 | BD41: 0 | BE41: 0 | BF41: 0 | BG41: 0
A42: A kiegyenlítőlánc javasolt folyóméter-tömege: | F42: GUMJ= | G42: =ZZ*_GZM1*KZU -> 1.16 | H42: kg/m | AY42: 0 | AZ42: 0
A43: Kiegyenlítő lánc tömege méterenként: | F43: GUM= | G43: 1.16 | H43: kg/m | AQ43: Berakodás= | AR43: 0
A44: Kiegyenlítő lánc tömege: | AT44: GQr= | AU44: =$AJ$10 -> 0
A45: Fülke oldal: | F45: GU = GUM * (HQ/2+/-y) *UU= | G45: =GUM*y_le*UU -> 0 | H45: kg | AT45: GKr= | AU45: 850
A46: Ellensúly oldal: | F46: GUe= | G46: =(GUM*(y_fel)*UU) -> 0 | H46: kg
A47: Függőkábel folyóméterenkénti tömege: | F47: GHM = | G47: 1.2 | H47: kg/m | AI47: =HLOOKUP(gammaZ,B170:H171,2) -> 6.5 | AP47: =K207 -> surlódási kúp szöge | AR47: =L207 -> arcustg(μZRN) | AS47: =IF(HOR=1,M207,"Nem értelmezhető, nem alámetszett félkör horony") -> Nem értelmezhető, nem alámetszett félkör horony
A48: Függőkábel tömege: | F48: GH = GHM * (HQ/4+y/2) *HH= | G48: =(GHM*(HQ/4+y_fel/2))*HH -> 7.2 | H48: kg | AS48: =IF(HOR=2,$M$209,"Nem érterlmezhető nem alámetszett ékhorony") -> 12.27152046
AS49: =IF(HOR=3,$M$211,"Nem értelezhető nem alámetszés nélküli ékhorony") -> Nem értelezhető nem alámetszés nélküli ékhorony
A50: Terelőtárcsa átmérője | F50: DR1 = | G50: 0
A51: A terlőtárcsa tömege | F51: GRt= | G51: 0
A52: Egy terelőtárcsa tehetetlenségi nyomatéka: | F52: IRt = | G52: =0.5*GRt*POWER((DRegy/1000),2) -> 0 | H52: kgm2
A53: A terelőtárcsák száma a fülkei oldalon: | F53: NK = | G53: 0 | H53: db
A54: A terlőtárcsák száma az ellensúly oldalán: | F54: NG = | G54: 0 | H54: db
A55: A kötéltárcsák (függesztőtárcsák) névleges átmérője fülke old: | F55: DR2 = | G55: 0 | H55: mm
E56: ells.oldal | F56: DR3 = | G56: 0 | H56: mm
A57: Egy kötéltárcsa tömege: | E57: fülke oldal | F57: GR = | G57: 0 | H57: kg
E58: ellseúly oldal | F58: GRE = | G58: 0 | H58: kg | O58: y_le
A59: Egy kötéltárcsa tehetetlenségi nyomatéka: | E59: fülke oldal | F59: IR = | G59: =0.5*GRE*(POWER(DR2___DZ/1000,2)) -> 0 | H59: kgm2 | O59: 0
E60: ellsúly oldal | F60: IRG = | G60: =0.5*GRE*(POWER(DR3__DZ/1000,2)) -> 0 | H60: kgm2 | O60: 0 | P60: 0 | Q60: 0 | R60: 0 | S60: 0 | T60: 0 | U60: 0 | V60: 0 | W60: 0
A61: kötéltárcsák száma a fülke oldalon | F61: NKk= | G61: 0 | H61: db | O61: 0 | P61: 0 | Q61: 0 | R61: 0 | S61: 0 | T61: 0 | U61: 0 | V61: 0 | W61: 0
A62: kötéltárcsák száma az ellensúly oldalon | F62: NGk= | G62: 0 | H62: db | O62: 0 | P62: 0 | Q62: 0 | R62: 0 | S62: 0 | T62: 0 | U62: 0 | V62: 0 | W62: 0
A63: A kötéltárcsák száma azonos értelmű hajlítással: | F63: Nps = | H63: db | O63: 0 | P63: 0 | Q63: 0 | R63: 0 | S63: 0 | T63: 0 | U63: 0 | V63: 0 | W63: 0
A64: A kötéltárcsák száma ellentétes értelmű hajlítással: | F64: Npr = | G64: 0 | H64: db | N64: emZRN*bD | O64: 0 | P64: 0 | Q64: 0 | R64: 0 | S64: 0 | T64: 0 | U64: 0 | V64: 0 | W64: 0
A65: A kiegyenlités feszitő tárcsa átmérő | F65: DRk= | G65: 0 | H65: mm | O65: 0 | P65: 0 | Q65: 0 | R65: 0 | S65: 0 | T65: 0 | U65: 0 | V65: 0 | W65: 0
A66: A kiegyenlités feszitő tárcsa tömege: | F66: GRk= | G66: 0 | H66: kg | O66: 0 | P66: 0 | Q66: 0 | R66: 0 | S66: 0 | T66: 0 | U66: 0 | V66: 0 | W66: 0
A67: A kiegyenlités feszitő tárcsa tehetetlenségi nyomatéka | F67: IRk= | G67: =0.5*GRk*(POWER(DRk/1000,2)) -> 0 | H67: kgm2 | O67: 0 | P67: 0 | Q67: 0 | R67: 0 | S67: 0 | T67: 0 | U67: 0 | V67: 0 | W67: 0
B68: Gépelhelyezés | F68: (Gép) | G68: 1 | O68: 0 | P68: 0 | Q68: 0 | R68: 0 | S68: 0 | T68: 0 | U68: 0 | V68: 0 | W68: 0
D69: 1 | E69: felső | O69: 0 | P69: 0 | Q69: 0 | R69: 0 | S69: 0 | T69: 0 | U69: 0 | V69: 0 | W69: 0
D70: 2 | E70: alsó
D71: A terelés módja (0; 1; 2)(TERM): | E71: =IF(TERM=0,"nincs terelés",(IF(TERM=1,"ellensúly terelve (fülke hajtás)",(IF(TERM=2,"fülke terelve (ellensúly hajtás)"))))) -> nincs terelés | G71: 0 | H71: =IF(TERM=1, "A terelés adatait ki kell tölteni",IF(TERM=2,"A terelés adatait ki kell tölteni","")) -> 
C72: nincs terelés | F72: 0
C73: ellensúly terelve ("fülke hajtás") | F73: 1
C74: fülke terelve ("ellesúly hajtás") | F74: 2
B75: Fülke terhelési állapota (üres=0, tele=1) (teü) | G75: 0 | K75: 9 | L75: 10
C76: HI=0,1 | F76: =IF(G76=1," fülke fel",IF(G76,"=0"," fülke le")) -> fülke fel | G76: 1
B77: Felcsúcsszámítás (csúcs) (1= IGEN;0=NEM) | G77: 1
B78: Az ütköző lökete rövidített? ("0" = nem, "1" = igen) (ÜL) | G78: 0
B79: Az ellensúly szimmetrilus függesztésű 1=igen;2=nem) (EF) | G79: 1
E80: =IF(G80>0,"igen, hurok-hajtás","nem, nem hurokhajtás") -> nem, nem hurokhajtás | F80: NKkk= | G80: 0
B81: Függesztőelem fajtája (Felem) | E81: Köteles= | F81: 0 | G81: 0 | K81: Szint növekedés | L81: 2
E82: Hevederes= | F82: 1
E83: Függesztési tényező (KZU): | G83: 1
D84: Kiegyenlító láncfeszítő súlya (GM)= | G84: 0
D85: Kiegyenlítő láncok száma (UU)= | G85: 0
D86: Fűggőkábelek száma HH= | G86: 1 | H86: Hurok-hajtás-e? (0, v. 1)
E87: A hajtótárcsa horony kivitele (HOR): | G87: 2
B88: 1 | C88: Alámetszett félkör alakú, ill. tele félkör alakú horony
B89: 2 | C89: Edzés nélküli, alámetszett ékhorony
B90: 3 | C90: Edzett, alámetszés nélküli ékhorony
E91: A kötélleeresztés távolsága (TZ): | G91: 560 | H91: db
A92: A hajtótárcsa és a terelőtárcsa tengelyeinek függőleges távolsága (HDA) | G92: 0
B93: (ha nincs ter.: a ht. és a kötélbek. függ. távolsága) | G93: 0
A94: A hajtótárcsa átfogási szöge (számítása később): | O94: 14764.4541
C95: b = | D95: 2.623667397 | F95: rad | G95: =180*beta_rad/PI() -> 180
A96: A fülke gyorsulása (lassulása) vészleállításkor: | F96: AKN= | G96: 0.5
A97: A fülke szélessége (belméret): | F97: BK = | G97: 1200
A98: A fülke mélysége (hosszúsága, belméret): | F98: TK = | G98: 2100
A99: A fülke alapterülete: | F99: AKV = BK*TK =
D100: AKV = BK*TK = | E100: =BK/1000*TK/1000 -> 2.52 | F100: m2
D101: Az 1.1 táblázatból interpolálással: AKV max = | E101: 3.1 | F101: m2
D102: g= | E102: 9.81
A103: A hajtótárcsa névleges (közép) átmérője: | F103: DD = | G103: 560 | H103: mm
A104: A horony ékszöge: | C104: rad = | D104: =PI()*G104/180 -> 0.7853981634 | E104: =IF(yZ_radián<0.43,"Nem felel meg!","Megfelel") -> Megfelel | F104: gZ = | G104: 45 | H104: o
A105: Az alámetszés szélessége: | D105: Almszöge= | E105: 90 | F105: BZU = | G105: 6.6
A106: Surlódási erőtény. az aknaában fülkeoldalon (TS)= | G106: 0
A107: Surlódási erőtény. az aknaában ells.oldalon (ES)= | G107: 0
A122: A kötélvezetés ábrája:
A156: A hajtótárcsa-tengelyt terhelő erő:
A157: =VLOOKUP(AN50,A1512:H1514,7) -> FDR = [(GK + GQ + GT + GG + GZS + GH + GU) / KZU+ GD]*g =
H158: =VLOOKUP(TERM,A1512:H1514,8) -> 31909.91306 | I158: N
A159: A terelőtárcsa-tengelyt terhelő erő:
A160: =VLOOKUP(AN50,A1518:H1520,7) -> FRR =
H161: =VLOOKUP(TERM,A1518:H1520,8) -> 0 | I161: N
A162: Függesztő kötél:
A163: Az előírt biztonsági tényező meghatározása:
A164: =VLOOKUP(HOR,B88:F90,2) -> Edzés nélküli, alámetszett ékhorony
A165: Az alámetszési szög:
E166: aZ = 2*arcsin (BZU / DZ) = | F166: =2*ASIN(BZU/DZ) -> 1.646423954 | G166: rad = | H166: =aZ_radián/PI()*180 -> 94.33314387 | I166: °
A168: Táblázat a hajtótárcsák egyenértékű darabszámához:
B169: Ékhornyok ékszögei (gZ) fokban
A170: 1 | B170: 35 | C170: 36 | D170: 38 | E170: 40 | F170: 42 | G170: 45 | H170: 50
A171: Nequiv (t) | B171: 18.5 | C171: 16 | D171: 12 | E171: 10 | F171: 8 | G171: 6.5 | H171: 5
B172: Alámetszett, félkör- vagy ékalakú hornyok (aZ) alámetszési szögei fokban: | O172: 1300
A173: 2 | B173: 75 | C173: 80 | D173: 85 | E173: 90 | F173: 95 | G173: 100 | H173: 105 | O173: 350
A174: Nequiv (t) | B174: 2.5 | C174: 3 | D174: 3.8 | E174: 5 | F174: 6.7 | G174: 10 | H174: 15.2
A175: A hajtótárcsák egyenértékű darabszáma: | V175: HDAr1= | W175: 500
A176: Ékhoronynál a táblázatból: | E176: Nequiv (t) = | F176: =IF(HOR=3,HLOOKUP(gammaZ,B170:H171,2),"Nem alámetszés nélküli horony") -> Nem alámetszés nélküli horony | V176: TDAr1= | W176: 1000
K178: δ= | L178: =ATAN(HDAr/(TDAr)) -> 1.307801595 | M178: rad | N178: =180*L178/PI() -> 74.93151184 | O178: o | S178: =ATAN(HDAr1/(TDAr1)) -> 0.463647609 | T178: rad | U178: =180*S178/PI() -> 26.56505118 | V178: o
A179: N equiv (t) meghatározása interpolációval alámetszett horonynál: | K179: ɜ= | L179: =ASIN(((DD-DRegy)/2/((TDAr)^2+HDAr^2)^0.5)) -> 0.2095080975 | M179: rad | N179: =180*L179/PI() -> 12.00392976 | O179: o | S179: =ASIN(((DD-DRegy)/2/((TDAr1)^2+HDAr1^2)^0.5)) -> 0.2531343126 | T179: rad | U179: =180*S179/PI() -> 14.50352776 | V179: o
A180: aZ 1 = | B180: =IF(aZ_fok<75,0,HLOOKUP(aZ_fok,B173:H174,1)) -> 90 | E180: Nequiv (t)1 = | F180: =IF(aZ_fok<75,1,HLOOKUP(aZ_fok,B173:H174,2)) -> 5 | K180: β/2= | L180: =RADIANS(N180) -> 1.517309693 | M180: rad | N180: =N178+N179 -> 86.9354416 | O180: o | S180: =RADIANS(U180) -> 0.7167819216 | T180: rad | U180: =U178+U179 -> 41.06857894 | V180: o
A181: aZ 2 = | B181: =IF(aZ_fok<75,0,HLOOKUP(aZ_fok+5,B173:H174,1)) -> 95 | E181: Nequiv (t)2 = | F181: =IF(aZ_fok<75,1,HLOOKUP(aZ_fok+5,B173:H174,2)) -> 6.7 | K181: β= | L181: =RADIANS(N181) -> 3.034619385 | N181: =2*N180 -> 173.8708832 | S181: =RADIANS(U181) -> 3.072976412 | U181: =U180+135 -> 176.0685789 | V181: o
F182: Nequiv(t) = Nequiv(t)1 + (aZ - aZ1)* (Nequiv(t)2 - Nequiv(t)1) / (aZ2 - aZ1) = | G182: =IF(HOR<>3,Nequiv__t_1+(aZ_fok-aZ_1)*(Nequiv__t_2-Nequiv__t_1)/IF(aZ_2-aZ_1=0,1,(aZ_2-aZ_1)),0) -> 6.473268915
A184: A hajtótárcsa és a terelőtárcsa átmérőviszonya:
F185: Kp1 = (DD / DR1)4 = | G185: =IF(DRegy<>0, POWER((DD/DRegy),4),0) -> 0
A186: A hajtótárcsa és a kötéltárcsák (függesztőtárcsák) átmérőviszonya:
F187: Kp2 = (DD / DR2)4 = | G187: =IF(DRkettő<>0,POWER((DD/DRkettő),4),0) -> 0
A188: A terelőtárcsák egyenértékű száma:
F189: Nequiv (p) = (Nps + 4 * Npr) * Kp = | G189: =IF(_Kp2<_Kp1,(Nps+4*Npr)*_Kp1,(Nps+4*Npr)*_Kp2) -> 0
A190: Az egyenértékű eredő kötéltárcsaszám:
F191: Nequiv = Nequiv(t) + Nequiv(p) = | G191: =IF(HOR<3,Nequiv_t+Nequiv__p,F176+Nequiv__p) -> 6.473268915
A192: Az előírt min. biztonsági tényező:
E193: 695,85*106 * Nequiv
A194: Számított: | D194: log | E194: DD 8,567
E195: DZ
C196: 2,6834 -
D197: log | E197: 77,09 * DD -2,894
E198: DZ | H198: IZZszám
B199: IZZ = 10 | G199: = | H199: =10^(2.6834-LOG10(695.85*10^6*Nequiv/(DD/DZ)^8.567)/LOG10(77.09*(DD/DZ)^-2.894)) -> 8.995114398
A200: Előírt | B200: IZZmin.: | C200: =IF(ZZr>2,12,16) -> 16 | D200: ): | G200: IZZtény = | H200: =IF(IZZszám<IZZmin.,IZZmin.,IZZszám) -> 16
A201: A kötél tényleges biztonsági tényezője :
F202: IZ = ZZ * FZM * KZU / [(GK + GQr + GT + GZ*KZU) * g] = | G202: =ZZ*FZM*KZU/((GK+GQr+GT+_GZf1*KZU)*g) -> 21.12357005
G203: =IF(IZ >IZZtény,">= IZZ, megfelel","< IZZ, nem felel meg.") -> >= IZZ, megfelel
A204: Átmérőviszony: | F204: DD / DZ = | G204: =DD/DZ -> 62.22222222
G205: =IF(DD___DZ>=40,">= 40, megfelel","< 40, nem felel meg") -> >= 40, megfelel
F206: DR1 / DZ = | G206: =IF(DRegy=0,"nem értelmezhető",DRegy/DZ) -> nem értelmezhető
G207: =IF(DR1___DZ>=40," megfelel","< 40, nem felel meg") -> megfelel | K207: surlódási kúp szöge | L207: arcustg(μZRN) | M207: =DEGREES(4*mZL*(COS(yZ_radián/2)-SIN(aZ_radián/2))/(PI()-aZ_radián-yZ_radián-SIN(aZ_radián)+SIN(yZ_radián))) -> 10.40415901 | N207: °
F208: DR2 / DZ = | G208: =IF(DRkettő=0,"nem értelmezhető",DRkettő/DZ) -> nem értelmezhető
G209: =IF(DR2___DZ>=40,"megfelel","< 40, nem felel meg") -> < 40, nem felel meg | M209: =DEGREES(4*mZL*(1-SIN(aZ_radián/2))/(PI()-aZ_radián-SIN(aZ_radián))) -> 12.27152046 | N209: °
A210: Az átfogási szög meghatározása:
M211: =DEGREES(mZN/(SIN(yZ_radián/2))) -> 74.86054356 | N211: °
K213: FEL
HE218: 1.580965163 | HF218: 0.6972590237 | HG218: 0.8613199697 | HH218: 0.9433504427 | HI218: 1.025380916 | HJ218: 1.107411389 | HK218: 0.6972590237 | HL218: 0.8613199697 | HM218: 0.9433504427 | HN218: 1.025380916 | HO218: 1.107411389 | HP218: 1.189441862 | HQ218: 1.271472335 | HR218: 1.353502808 | HS218: 1.435533281 | HT218: 1.517563754 | HU218: 0.7792894967 | HV218: 0.8613199697 | HW218: 0.9433504427 | HX218: 1.025380916 | HY218: 1.107411389 | HZ218: 1.189441862 | IA218: 1.271472335 | IB218: 1.353502808 | IC218: 1.435533281 | ID218: 1.517563754 | IE218: 1.107411391 | IF218: 1.22398101 | IG218: 1.273523098 | IH218: 1.318346892 | II218: 1.359095795 | IJ218: 1.396301316 | IK218: 1.430406377 | IL218: 1.461783032 | IM218: 1.490746099 | IN218: 1.517563754 | IO218: 1.107411391 | IP218: 1.22398101 | IQ218: 1.273523098 | IR218: 1.318346892
F227: TDA = TZ - (DD + DR1) / 2 = | G227: =IF(HDA=0,DD-(DD-DRegy)/2,TZ-(DD+DRegy)/2) -> 280 | H227: mm
E228: d = arc tg (HDA / TDA) = | F228: =IF(TDA=0,PI()/2,ATAN(HDA/TDA)) -> 0 | G228: rad = | H228: =180*delta_radián/PI() -> 0
E229: e = arc sin [(DD-DR1) / (2 * (TDA2 + HDA2)0,5)] = | F229: =ASIN(((DD-DRegy)/(2*(TDA^2+HDA^2)^0.5))) -> 1.570796327 | G229: rad = | H229: =180*epszilon_radián/PI() -> 90
A230: Átfogási szög a hajtótárcsán: | D230: =IF(G80>0,"(hurok-hajtás)"," ") ->  | K230: =(GQ+GK)*(g+(AKN/KZU)) -> 19021.95
E231: =IF(G80>0,"b = 1,5 * p + d + 3 * e =","b = p / 2 + d + e =") -> b = p / 2 + d + e = | F231: =IF(hurok?>0,1.5*PI()+delta_radián+3*epszilon_radián,PI()/2+delta_radián+epszilon_radián) -> 3.141592654 | G231: rad = | H231: =180*beta_rad/PI() -> 180
T236: 1.509306921
A237: A hajtótárcsa és a kötél kapcsolatának ellenőrzése | T237: 1.509306921
A238: Horony= | B238: =HOR -> 2 | T238: 1.509306921
A239: A fülkébe való berakodás: | D239: (A 125 % terhelésű, illetve az esetlegesen behajtó rakodógéppel terhelt fülke statikusan nem csúszhat meg) | T239: 1.501050089
T240: 1.496921672
A241: A statikus súrlódási tényező: | E241: Kötels | F241: mZL = | G241: 0.1 | T241: 1.496921672
A242: A látszólagos súrlódási tényező: | E242: Hevederes | F242: mzl_h= | G242: 0.25 | T242: 1.496921672
A243: Félkör alakú alámetszett horony esetén: | T243: 1.496921672
A244: 1 | G244: mZRL = 4*mZL*(cosgZ/2 - sinaZ/2) / (p-aZ-gZ-sinaZ+singZ) = | H244: =IF(HOR=0,4*mZL*(COS(yZ_radián/2)-SIN(aZ_radián/2))/(PI()-aZ_radián-yZ_radián-SIN(aZ_radián)+SIN(yZ_radián)),"Nem félkör horony") -> Nem félkör horony | T244: 1.496921672
A245: Edzés nélküli, alámetszett ékhorony esetén: | T245: 1.496921672
A246: 2 | G246: mZRL = mZL*(4*(1 - sin aZ/2) / (p - aZ - sinaZ )) = | H246: =J248/J249 -> 0.2141784362 | T246: 1.496921672
A247: Edzett ékhorony esetén: | T247: 1.496921672
A248: 3 | G248: mZRL = mZL / (sin gZ/2) = | H248: =IF(HOR=3,IF(Felem=1,mzl_h/SIN(yZ_radián/2),mZL/SIN(yZ_radián/2)),"Nem edzett ékhorony!") -> Nem edzett ékhorony! | J248: =mZL*(4*(1-SIN(aZ_radián/2))) -> 0.1066666667 | T248: 1.496921672
A249: Az áthúzási viszonyszám: | I249: ˚ | J249: =PI()-(aZ_radián)-SIN(aZ_radián) -> 0.4980271056 | T249: 1.496921672
G250: e mZRL * bD = | H250: =EXP(VLOOKUP(HOR,A244:H248,8)*beta_rad) -> 1.959837187 | T250: 1.496921672
A251: A statikus erők viszonya: | T251: 1.496921672
G252: =+IF(G10>0.25*G9,"IZD1 = FZ11 / FZ21 = (GQ + GT + GK + GZ*KZU) / GG =","IZD1 = FZ11 / FZ21 = (1,25*GQ + GK + GZ*KZU) / GG = ") -> IZD1 = FZ11 / FZ21 = (1,25*GQ + GK + GZ*KZU) / GG = | H252: =IF(GT<0.25*GQ,(1.25*GQ+GK+_GZf1*KZU)/GG,(GQ+GK+GT+_GZf1*KZU)/GG) -> 1.657894737 | T252: 1.496921672
A253: F121 | E253: 28730.85938 | P253: 0 | Q253: 0 | R253: 0 | S253: 0 | T253: 0 | U253: 0 | V253: 0 | W253: 0 | X253: 0 | Y253: 0 | Z253: 0 | AA253: 0 | AB253: 0 | AC253: 0 | AD253: 0 | AE253: 0 | AF253: 0 | AG253: 0 | AH253: 0 | AI253: 0 | AJ253: 0 | AK253: 0 | AL253: 0 | AM253: 0 | AN253: 0 | AO253: 0 | AP253: 0 | AQ253: 0 | AR253: 0 | AS253: 0 | AT253: 0 | AU253: 0 | AV253: 0 | AW253: 0 | AX253: 0 | AY253: 0 | AZ253: 0 | BA253: 0 | BB253: 0 | BC253: 0 | BD253: 0 | BE253: 0 | BF253: 0 | BG253: 0 | BH253: 0 | BI253: 0 | BJ253: 0 | BK253: 0 | BL253: 0 | BM253: 0 | BN253: 0 | BO253: 0 | BP253: 0 | BQ253: 0 | BR253: 0 | BS253: 0 | BT253: 0 | BU253: 0 | BV253: 0 | BW253: 0 | BX253: 0 | BY253: 0 | BZ253: 0 | CA253: 0 | CB253: 0 | CC253: 0 | CD253: 0 | CE253: 0 | CF253: 0 | CG253: 0 | CH253: 0 | CI253: 0 | CJ253: 0 | CK253: 0 | CL253: 0 | CM253: 0 | CN253: 0 | CO253: 0 | CP253: 0 | CQ253: 0 | CR253: 0 | CS253: 0 | CT253: 0 | CU253: 0 | CV253: 0 | CW253: 0 | CX253: 0 | CY253: 0 | CZ253: 0 | DA253: 0 | DB253: 0 | DC253: 0 | DD253: 0 | DE253: 0 | DF253: 0 | DG253: 0 | DH253: 0 | DI253: 0 | DJ253: 0 | DK253: 0 | DL253: 0 | DM253: 0 | DN253: 0 | DO253: 0 | DP253: 0 | DQ253: 0 | DR253: 0 | DS253: 0 | DT253: 0 | DU253: 0 | DV253: 0 | DW253: 0 | DX253: 0 | DY253: 0 | DZ253: 0 | EA253: 0 | EB253: 0 | EC253: 0 | ED253: 0 | EE253: 0 | EF253: 0 | EG253: 0 | EH253: 0 | EI253: 0 | EJ253: 0 | EK253: 0 | EL253: 0 | EM253: 0 | EN253: 0 | EO253: 0 | EP253: 0 | EQ253: 0 | ER253: 0 | ES253: 0 | ET253: 0 | EU253: 0 | EV253: 0 | EW253: 0 | EX253: 0 | EY253: 0 | EZ253: 0 | FA253: 0 | FB253: 0 | FC253: 0 | FD253: 0 | FE253: 0 | FF253: 0 | FG253: 0 | FH253: 0 | FI253: 0 | FJ253: 0 | FK253: 0 | FL253: 0 | FM253: 0 | FN253: 0 | FO253: 0 | FP253: 0 | FQ253: 0 | FR253: 0 | FS253: 0 | FT253: 0 | FU253: 0 | FV253: 0 | FW253: 0 | FX253: 0 | FY253: 0 | FZ253: 0 | GA253: 0 | GB253: 0 | GC253: 0 | GD253: 0 | GE253: 0 | GF253: 0 | GG253: 0 | GH253: 0 | GI253: 0 | GJ253: 0 | GK253: 0 | GL253: 0 | GM253: 0 | GN253: 0 | GO253: 0 | GP253: 0 | GQ253: 0 | GR253: 0 | GS253: 0 | GT253: 0 | GU253: 0 | GV253: 0 | GW253: 0 | GX253: 0 | GY253: 0 | GZ253: 0 | HA253: 0 | HB253: 0 | HC253: 0 | HD253: 0 | HE253: 0 | HF253: 0 | HG253: 0 | HH253: 0 | HI253: 0 | HJ253: 0 | HK253: 0 | HL253: 0 | HM253: 0 | HN253: 0 | HO253: 0 | HP253: 0 | HQ253: 0 | HR253: 0 | HS253: 0 | HT253: 0 | HU253: 0 | HV253: 0 | HW253: 0 | HX253: 0 | HY253: 0 | HZ253: 0 | IA253: 0 | IB253: 0 | IC253: 0 | ID253: 0 | IE253: 0 | IF253: 0 | IG253: 0 | IH253: 0 | II253: 0 | IJ253: 0 | IK253: 0 | IL253: 0 | IM253: 0 | IN253: 0 | IO253: 0 | IP253: 0 | IQ253: 0 | IR253: 0 | IS253: 0 | IT253: 0 | IU253: 0 | IV253: 0
A254: F221 | E254: 21954.72852 | P254: 0 | Q254: 0 | R254: 0 | S254: 0 | T254: 0 | U254: 0 | V254: 0 | W254: 0 | X254: 0 | Y254: 0 | Z254: 0 | AA254: 0 | AB254: 0 | AC254: 0 | AD254: 0 | AE254: 0 | AF254: 0 | AG254: 0 | AH254: 0 | AI254: 0 | AJ254: 0 | AK254: 0 | AL254: 0 | AM254: 0 | AN254: 0 | AO254: 0 | AP254: 0 | AQ254: 0 | AR254: 0 | AS254: 0 | AT254: 0 | AU254: 0 | AV254: 0 | AW254: 0 | AX254: 0 | AY254: 0 | AZ254: 0 | BA254: 0 | BB254: 0 | BC254: 0 | BD254: 0 | BE254: 0 | BF254: 0 | BG254: 0 | BH254: 0 | BI254: 0 | BJ254: 0 | BK254: 0 | BL254: 0 | BM254: 0 | BN254: 0 | BO254: 0 | BP254: 0 | BQ254: 0 | BR254: 0 | BS254: 0 | BT254: 0 | BU254: 0 | BV254: 0 | BW254: 0 | BX254: 0 | BY254: 0 | BZ254: 0 | CA254: 0 | CB254: 0 | CC254: 0 | CD254: 0 | CE254: 0 | CF254: 0 | CG254: 0 | CH254: 0 | CI254: 0 | CJ254: 0 | CK254: 0 | CL254: 0 | CM254: 0 | CN254: 0 | CO254: 0 | CP254: 0 | CQ254: 0 | CR254: 0 | CS254: 0 | CT254: 0 | CU254: 0 | CV254: 0 | CW254: 0 | CX254: 0 | CY254: 0 | CZ254: 0 | DA254: 0 | DB254: 0 | DC254: 0 | DD254: 0 | DE254: 0 | DF254: 0 | DG254: 0 | DH254: 0 | DI254: 0 | DJ254: 0 | DK254: 0 | DL254: 0 | DM254: 0 | DN254: 0 | DO254: 0 | DP254: 0 | DQ254: 0 | DR254: 0 | DS254: 0 | DT254: 0 | DU254: 0 | DV254: 0 | DW254: 0 | DX254: 0 | DY254: 0 | DZ254: 0 | EA254: 0 | EB254: 0 | EC254: 0 | ED254: 0 | EE254: 0 | EF254: 0 | EG254: 0 | EH254: 0 | EI254: 0 | EJ254: 0 | EK254: 0 | EL254: 0 | EM254: 0 | EN254: 0 | EO254: 0 | EP254: 0 | EQ254: 0 | ER254: 0 | ES254: 0 | ET254: 0 | EU254: 0 | EV254: 0 | EW254: 0 | EX254: 0 | EY254: 0 | EZ254: 0 | FA254: 0 | FB254: 0 | FC254: 0 | FD254: 0 | FE254: 0 | FF254: 0 | FG254: 0 | FH254: 0 | FI254: 0 | FJ254: 0 | FK254: 0 | FL254: 0 | FM254: 0 | FN254: 0 | FO254: 0 | FP254: 0 | FQ254: 0 | FR254: 0 | FS254: 0 | FT254: 0 | FU254: 0 | FV254: 0 | FW254: 0 | FX254: 0 | FY254: 0 | FZ254: 0 | GA254: 0 | GB254: 0 | GC254: 0 | GD254: 0 | GE254: 0 | GF254: 0 | GG254: 0 | GH254: 0 | GI254: 0 | GJ254: 0 | GK254: 0 | GL254: 0 | GM254: 0 | GN254: 0 | GO254: 0 | GP254: 0 | GQ254: 0 | GR254: 0 | GS254: 0 | GT254: 0 | GU254: 0 | GV254: 0 | GW254: 0 | GX254: 0 | GY254: 0 | GZ254: 0 | HA254: 0 | HB254: 0 | HC254: 0 | HD254: 0 | HE254: 0 | HF254: 0 | HG254: 0 | HH254: 0 | HI254: 0 | HJ254: 0 | HK254: 0 | HL254: 0 | HM254: 0 | HN254: 0 | HO254: 0 | HP254: 0 | HQ254: 0 | HR254: 0 | HS254: 0 | HT254: 0 | HU254: 0 | HV254: 0 | HW254: 0 | HX254: 0 | HY254: 0 | HZ254: 0 | IA254: 0 | IB254: 0 | IC254: 0 | ID254: 0 | IE254: 0 | IF254: 0 | IG254: 0 | IH254: 0 | II254: 0 | IJ254: 0 | IK254: 0 | IL254: 0 | IM254: 0 | IN254: 0 | IO254: 0 | IP254: 0 | IQ254: 0 | IR254: 0 | IS254: 0 | IT254: 0 | IU254: 0 | IV254: 0
A255: Vészleállítás: | C255: (A névleges terhelésű, ill. a terheletlen fülke dinamikus viselkedése) | P255: 0 | Q255: 0 | R255: 0 | S255: 0 | T255: 0 | U255: 0 | V255: 0 | W255: 0 | X255: 0 | Y255: 0 | Z255: 0 | AA255: 0 | AB255: 0 | AC255: 0 | AD255: 0 | AE255: 0 | AF255: 0 | AG255: 0 | AH255: 0 | AI255: 0 | AJ255: 0 | AK255: 0 | AL255: 0 | AM255: 0 | AN255: 0 | AO255: 0 | AP255: 0 | AQ255: 0 | AR255: 0 | AS255: 0 | AT255: 0 | AU255: 0 | AV255: 0 | AW255: 0 | AX255: 0 | AY255: 0 | AZ255: 0 | BA255: 0 | BB255: 0 | BC255: 0 | BD255: 0 | BE255: 0 | BF255: 0 | BG255: 0 | BH255: 0 | BI255: 0 | BJ255: 0 | BK255: 0 | BL255: 0 | BM255: 0 | BN255: 0 | BO255: 0 | BP255: 0 | BQ255: 0 | BR255: 0 | BS255: 0 | BT255: 0 | BU255: 0 | BV255: 0 | BW255: 0 | BX255: 0 | BY255: 0 | BZ255: 0 | CA255: 0 | CB255: 0 | CC255: 0 | CD255: 0 | CE255: 0 | CF255: 0 | CG255: 0 | CH255: 0 | CI255: 0 | CJ255: 0 | CK255: 0 | CL255: 0 | CM255: 0 | CN255: 0 | CO255: 0 | CP255: 0 | CQ255: 0 | CR255: 0 | CS255: 0 | CT255: 0 | CU255: 0 | CV255: 0 | CW255: 0 | CX255: 0 | CY255: 0 | CZ255: 0 | DA255: 0 | DB255: 0 | DC255: 0 | DD255: 0 | DE255: 0 | DF255: 0 | DG255: 0 | DH255: 0 | DI255: 0 | DJ255: 0 | DK255: 0 | DL255: 0 | DM255: 0 | DN255: 0 | DO255: 0 | DP255: 0 | DQ255: 0 | DR255: 0 | DS255: 0 | DT255: 0 | DU255: 0 | DV255: 0 | DW255: 0 | DX255: 0 | DY255: 0 | DZ255: 0 | EA255: 0 | EB255: 0 | EC255: 0 | ED255: 0 | EE255: 0 | EF255: 0 | EG255: 0 | EH255: 0 | EI255: 0 | EJ255: 0 | EK255: 0 | EL255: 0 | EM255: 0 | EN255: 0 | EO255: 0 | EP255: 0 | EQ255: 0 | ER255: 0 | ES255: 0 | ET255: 0 | EU255: 0 | EV255: 0 | EW255: 0 | EX255: 0 | EY255: 0 | EZ255: 0 | FA255: 0 | FB255: 0 | FC255: 0 | FD255: 0 | FE255: 0 | FF255: 0 | FG255: 0 | FH255: 0 | FI255: 0 | FJ255: 0 | FK255: 0 | FL255: 0 | FM255: 0 | FN255: 0 | FO255: 0 | FP255: 0 | FQ255: 0 | FR255: 0 | FS255: 0 | FT255: 0 | FU255: 0 | FV255: 0 | FW255: 0 | FX255: 0 | FY255: 0 | FZ255: 0 | GA255: 0 | GB255: 0 | GC255: 0 | GD255: 0 | GE255: 0 | GF255: 0 | GG255: 0 | GH255: 0 | GI255: 0 | GJ255: 0 | GK255: 0 | GL255: 0 | GM255: 0 | GN255: 0 | GO255: 0 | GP255: 0 | GQ255: 0 | GR255: 0 | GS255: 0 | GT255: 0 | GU255: 0 | GV255: 0 | GW255: 0 | GX255: 0 | GY255: 0 | GZ255: 0 | HA255: 0 | HB255: 0 | HC255: 0 | HD255: 0 | HE255: 0 | HF255: 0 | HG255: 0 | HH255: 0 | HI255: 0 | HJ255: 0 | HK255: 0 | HL255: 0 | HM255: 0 | HN255: 0 | HO255: 0 | HP255: 0 | HQ255: 0 | HR255: 0 | HS255: 0 | HT255: 0 | HU255: 0 | HV255: 0 | HW255: 0 | HX255: 0 | HY255: 0 | HZ255: 0 | IA255: 0 | IB255: 0 | IC255: 0 | ID255: 0 | IE255: 0 | IF255: 0 | IG255: 0 | IH255: 0 | II255: 0 | IJ255: 0 | IK255: 0 | IL255: 0 | IM255: 0 | IN255: 0 | IO255: 0 | IP255: 0 | IQ255: 0 | IR255: 0 | IS255: 0 | IT255: 0 | IU255: 0 | IV255: 0
A256: A kötél sebessége: | F256: VZ = VKN * KZU = | G256: =VKN*KZU -> 1 | H256: m/s | P256: 0 | Q256: 0 | R256: 0 | S256: 0 | T256: 0 | U256: 0 | V256: 0 | W256: 0 | X256: 0 | Y256: 0 | Z256: 0 | AA256: 0 | AB256: 0 | AC256: 0 | AD256: 0 | AE256: 0 | AF256: 0 | AG256: 0 | AH256: 0 | AI256: 0 | AJ256: 0 | AK256: 0 | AL256: 0 | AM256: 0 | AN256: 0 | AO256: 0 | AP256: 0 | AQ256: 0 | AR256: 0 | AS256: 0 | AT256: 0 | AU256: 0 | AV256: 0 | AW256: 0 | AX256: 0 | AY256: 0 | AZ256: 0 | BA256: 0 | BB256: 0 | BC256: 0 | BD256: 0 | BE256: 0 | BF256: 0 | BG256: 0 | BH256: 0 | BI256: 0 | BJ256: 0 | BK256: 0 | BL256: 0 | BM256: 0 | BN256: 0 | BO256: 0 | BP256: 0 | BQ256: 0 | BR256: 0 | BS256: 0 | BT256: 0 | BU256: 0 | BV256: 0 | BW256: 0 | BX256: 0 | BY256: 0 | BZ256: 0 | CA256: 0 | CB256: 0 | CC256: 0 | CD256: 0 | CE256: 0 | CF256: 0 | CG256: 0 | CH256: 0 | CI256: 0 | CJ256: 0 | CK256: 0 | CL256: 0 | CM256: 0 | CN256: 0 | CO256: 0 | CP256: 0 | CQ256: 0 | CR256: 0 | CS256: 0 | CT256: 0 | CU256: 0 | CV256: 0 | CW256: 0 | CX256: 0 | CY256: 0 | CZ256: 0 | DA256: 0 | DB256: 0 | DC256: 0 | DD256: 0 | DE256: 0 | DF256: 0 | DG256: 0 | DH256: 0 | DI256: 0 | DJ256: 0 | DK256: 0 | DL256: 0 | DM256: 0 | DN256: 0 | DO256: 0 | DP256: 0 | DQ256: 0 | DR256: 0 | DS256: 0 | DT256: 0 | DU256: 0 | DV256: 0 | DW256: 0 | DX256: 0 | DY256: 0 | DZ256: 0 | EA256: 0 | EB256: 0 | EC256: 0 | ED256: 0 | EE256: 0 | EF256: 0 | EG256: 0 | EH256: 0 | EI256: 0 | EJ256: 0 | EK256: 0 | EL256: 0 | EM256: 0 | EN256: 0 | EO256: 0 | EP256: 0 | EQ256: 0 | ER256: 0 | ES256: 0 | ET256: 0 | EU256: 0 | EV256: 0 | EW256: 0 | EX256: 0 | EY256: 0 | EZ256: 0 | FA256: 0 | FB256: 0 | FC256: 0 | FD256: 0 | FE256: 0 | FF256: 0 | FG256: 0 | FH256: 0 | FI256: 0 | FJ256: 0 | FK256: 0 | FL256: 0 | FM256: 0 | FN256: 0 | FO256: 0 | FP256: 0 | FQ256: 0 | FR256: 0 | FS256: 0 | FT256: 0 | FU256: 0 | FV256: 0 | FW256: 0 | FX256: 0 | FY256: 0 | FZ256: 0 | GA256: 0 | GB256: 0 | GC256: 0 | GD256: 0 | GE256: 0 | GF256: 0 | GG256: 0 | GH256: 0 | GI256: 0 | GJ256: 0 | GK256: 0 | GL256: 0 | GM256: 0 | GN256: 0 | GO256: 0 | GP256: 0 | GQ256: 0 | GR256: 0 | GS256: 0 | GT256: 0 | GU256: 0 | GV256: 0 | GW256: 0 | GX256: 0 | GY256: 0 | GZ256: 0 | HA256: 0 | HB256: 0 | HC256: 0 | HD256: 0 | HE256: 0 | HF256: 0 | HG256: 0 | HH256: 0 | HI256: 0 | HJ256: 0 | HK256: 0 | HL256: 0 | HM256: 0 | HN256: 0 | HO256: 0 | HP256: 0 | HQ256: 0 | HR256: 0 | HS256: 0 | HT256: 0 | HU256: 0 | HV256: 0 | HW256: 0 | HX256: 0 | HY256: 0 | HZ256: 0 | IA256: 0 | IB256: 0 | IC256: 0 | ID256: 0 | IE256: 0 | IF256: 0 | IG256: 0 | IH256: 0 | II256: 0 | IJ256: 0 | IK256: 0 | IL256: 0 | IM256: 0 | IN256: 0 | IO256: 0 | IP256: 0 | IQ256: 0 | IR256: 0 | IS256: 0 | IT256: 0 | IU256: 0 | IV256: 0
A257: A fülke lassulása: | F257: AKN = | G257: 0.5 | H257: m/s2 | P257: 0 | Q257: 0 | R257: 0 | S257: 0 | T257: 0 | U257: 0 | V257: 0 | W257: 0 | X257: 0 | Y257: 0 | Z257: 0 | AA257: 0 | AB257: 0 | AC257: 0 | AD257: 0 | AE257: 0 | AF257: 0 | AG257: 0 | AH257: 0 | AI257: 0 | AJ257: 0 | AK257: 0 | AL257: 0 | AM257: 0 | AN257: 0 | AO257: 0 | AP257: 0 | AQ257: 0 | AR257: 0 | AS257: 0 | AT257: 0 | AU257: 0 | AV257: 0 | AW257: 0 | AX257: 0 | AY257: 0 | AZ257: 0 | BA257: 0 | BB257: 0 | BC257: 0 | BD257: 0 | BE257: 0 | BF257: 0 | BG257: 0 | BH257: 0 | BI257: 0 | BJ257: 0 | BK257: 0 | BL257: 0 | BM257: 0 | BN257: 0 | BO257: 0 | BP257: 0 | BQ257: 0 | BR257: 0 | BS257: 0 | BT257: 0 | BU257: 0 | BV257: 0 | BW257: 0 | BX257: 0 | BY257: 0 | BZ257: 0 | CA257: 0 | CB257: 0 | CC257: 0 | CD257: 0 | CE257: 0 | CF257: 0 | CG257: 0 | CH257: 0 | CI257: 0 | CJ257: 0 | CK257: 0 | CL257: 0 | CM257: 0 | CN257: 0 | CO257: 0 | CP257: 0 | CQ257: 0 | CR257: 0 | CS257: 0 | CT257: 0 | CU257: 0 | CV257: 0 | CW257: 0 | CX257: 0 | CY257: 0 | CZ257: 0 | DA257: 0 | DB257: 0 | DC257: 0 | DD257: 0 | DE257: 0 | DF257: 0 | DG257: 0 | DH257: 0 | DI257: 0 | DJ257: 0 | DK257: 0 | DL257: 0 | DM257: 0 | DN257: 0 | DO257: 0 | DP257: 0 | DQ257: 0 | DR257: 0 | DS257: 0 | DT257: 0 | DU257: 0 | DV257: 0 | DW257: 0 | DX257: 0 | DY257: 0 | DZ257: 0 | EA257: 0 | EB257: 0 | EC257: 0 | ED257: 0 | EE257: 0 | EF257: 0 | EG257: 0 | EH257: 0 | EI257: 0 | EJ257: 0 | EK257: 0 | EL257: 0 | EM257: 0 | EN257: 0 | EO257: 0 | EP257: 0 | EQ257: 0 | ER257: 0 | ES257: 0 | ET257: 0 | EU257: 0 | EV257: 0 | EW257: 0 | EX257: 0 | EY257: 0 | EZ257: 0 | FA257: 0 | FB257: 0 | FC257: 0 | FD257: 0 | FE257: 0 | FF257: 0 | FG257: 0 | FH257: 0 | FI257: 0 | FJ257: 0 | FK257: 0 | FL257: 0 | FM257: 0 | FN257: 0 | FO257: 0 | FP257: 0 | FQ257: 0 | FR257: 0 | FS257: 0 | FT257: 0 | FU257: 0 | FV257: 0 | FW257: 0 | FX257: 0 | FY257: 0 | FZ257: 0 | GA257: 0 | GB257: 0 | GC257: 0 | GD257: 0 | GE257: 0 | GF257: 0 | GG257: 0 | GH257: 0 | GI257: 0 | GJ257: 0 | GK257: 0 | GL257: 0 | GM257: 0 | GN257: 0 | GO257: 0 | GP257: 0 | GQ257: 0 | GR257: 0 | GS257: 0 | GT257: 0 | GU257: 0 | GV257: 0 | GW257: 0 | GX257: 0 | GY257: 0 | GZ257: 0 | HA257: 0 | HB257: 0 | HC257: 0 | HD257: 0 | HE257: 0 | HF257: 0 | HG257: 0 | HH257: 0 | HI257: 0 | HJ257: 0 | HK257: 0 | HL257: 0 | HM257: 0 | HN257: 0 | HO257: 0 | HP257: 0 | HQ257: 0 | HR257: 0 | HS257: 0 | HT257: 0 | HU257: 0 | HV257: 0 | HW257: 0 | HX257: 0 | HY257: 0 | HZ257: 0 | IA257: 0 | IB257: 0 | IC257: 0 | ID257: 0 | IE257: 0 | IF257: 0 | IG257: 0 | IH257: 0 | II257: 0 | IJ257: 0 | IK257: 0 | IL257: 0 | IM257: 0 | IN257: 0 | IO257: 0 | IP257: 0 | IQ257: 0 | IR257: 0 | IS257: 0 | IT257: 0 | IU257: 0 | IV257: 0
A258: A mozgási súrlódási tényező: | F258: mZN = 0,1 / (1 + VZ/10) = | G258: =0.1/(1+H259/10) -> 0.1 | P258: 0 | Q258: 0 | R258: 0 | S258: 0 | T258: 0 | U258: 0 | V258: 0 | W258: 0 | X258: 0 | Y258: 0 | Z258: 0 | AA258: 0 | AB258: 0 | AC258: 0 | AD258: 0 | AE258: 0 | AF258: 0 | AG258: 0 | AH258: 0 | AI258: 0 | AJ258: 0 | AK258: 0 | AL258: 0 | AM258: 0 | AN258: 0 | AO258: 0 | AP258: 0 | AQ258: 0 | AR258: 0 | AS258: 0 | AT258: 0 | AU258: 0 | AV258: 0 | AW258: 0 | AX258: 0 | AY258: 0 | AZ258: 0 | BA258: 0 | BB258: 0 | BC258: 0 | BD258: 0 | BE258: 0 | BF258: 0 | BG258: 0 | BH258: 0 | BI258: 0 | BJ258: 0 | BK258: 0 | BL258: 0 | BM258: 0 | BN258: 0 | BO258: 0 | BP258: 0 | BQ258: 0 | BR258: 0 | BS258: 0 | BT258: 0 | BU258: 0 | BV258: 0 | BW258: 0 | BX258: 0 | BY258: 0 | BZ258: 0 | CA258: 0 | CB258: 0 | CC258: 0 | CD258: 0 | CE258: 0 | CF258: 0 | CG258: 0 | CH258: 0 | CI258: 0 | CJ258: 0 | CK258: 0 | CL258: 0 | CM258: 0 | CN258: 0 | CO258: 0 | CP258: 0 | CQ258: 0 | CR258: 0 | CS258: 0 | CT258: 0 | CU258: 0 | CV258: 0 | CW258: 0 | CX258: 0 | CY258: 0 | CZ258: 0 | DA258: 0 | DB258: 0 | DC258: 0 | DD258: 0 | DE258: 0 | DF258: 0 | DG258: 0 | DH258: 0 | DI258: 0 | DJ258: 0 | DK258: 0 | DL258: 0 | DM258: 0 | DN258: 0 | DO258: 0 | DP258: 0 | DQ258: 0 | DR258: 0 | DS258: 0 | DT258: 0 | DU258: 0 | DV258: 0 | DW258: 0 | DX258: 0 | DY258: 0 | DZ258: 0 | EA258: 0 | EB258: 0 | EC258: 0 | ED258: 0 | EE258: 0 | EF258: 0 | EG258: 0 | EH258: 0 | EI258: 0 | EJ258: 0 | EK258: 0 | EL258: 0 | EM258: 0 | EN258: 0 | EO258: 0 | EP258: 0 | EQ258: 0 | ER258: 0 | ES258: 0 | ET258: 0 | EU258: 0 | EV258: 0 | EW258: 0 | EX258: 0 | EY258: 0 | EZ258: 0 | FA258: 0 | FB258: 0 | FC258: 0 | FD258: 0 | FE258: 0 | FF258: 0 | FG258: 0 | FH258: 0 | FI258: 0 | FJ258: 0 | FK258: 0 | FL258: 0 | FM258: 0 | FN258: 0 | FO258: 0 | FP258: 0 | FQ258: 0 | FR258: 0 | FS258: 0 | FT258: 0 | FU258: 0 | FV258: 0 | FW258: 0 | FX258: 0 | FY258: 0 | FZ258: 0 | GA258: 0 | GB258: 0 | GC258: 0 | GD258: 0 | GE258: 0 | GF258: 0 | GG258: 0 | GH258: 0 | GI258: 0 | GJ258: 0 | GK258: 0 | GL258: 0 | GM258: 0 | GN258: 0 | GO258: 0 | GP258: 0 | GQ258: 0 | GR258: 0 | GS258: 0 | GT258: 0 | GU258: 0 | GV258: 0 | GW258: 0 | GX258: 0 | GY258: 0 | GZ258: 0 | HA258: 0 | HB258: 0 | HC258: 0 | HD258: 0 | HE258: 0 | HF258: 0 | HG258: 0 | HH258: 0 | HI258: 0 | HJ258: 0 | HK258: 0 | HL258: 0 | HM258: 0 | HN258: 0 | HO258: 0 | HP258: 0 | HQ258: 0 | HR258: 0 | HS258: 0 | HT258: 0 | HU258: 0 | HV258: 0 | HW258: 0 | HX258: 0 | HY258: 0 | HZ258: 0 | IA258: 0 | IB258: 0 | IC258: 0 | ID258: 0 | IE258: 0 | IF258: 0 | IG258: 0 | IH258: 0 | II258: 0 | IJ258: 0 | IK258: 0 | IL258: 0 | IM258: 0 | IN258: 0 | IO258: 0 | IP258: 0 | IQ258: 0 | IR258: 0 | IS258: 0 | IT258: 0 | IU258: 0 | IV258: 0
A259: A látszólagos súrlódási tényező: | P259: 0 | Q259: 0 | R259: 0 | S259: 0 | T259: 0 | U259: 0 | V259: 0 | W259: 0 | X259: 0 | Y259: 0 | Z259: 0 | AA259: 0 | AB259: 0 | AC259: 0 | AD259: 0 | AE259: 0 | AF259: 0 | AG259: 0 | AH259: 0 | AI259: 0 | AJ259: 0 | AK259: 0 | AL259: 0 | AM259: 0 | AN259: 0 | AO259: 0 | AP259: 0 | AQ259: 0 | AR259: 0 | AS259: 0 | AT259: 0 | AU259: 0 | AV259: 0 | AW259: 0 | AX259: 0 | AY259: 0 | AZ259: 0 | BA259: 0 | BB259: 0 | BC259: 0 | BD259: 0 | BE259: 0 | BF259: 0 | BG259: 0 | BH259: 0 | BI259: 0 | BJ259: 0 | BK259: 0 | BL259: 0 | BM259: 0 | BN259: 0 | BO259: 0 | BP259: 0 | BQ259: 0 | BR259: 0 | BS259: 0 | BT259: 0 | BU259: 0 | BV259: 0 | BW259: 0 | BX259: 0 | BY259: 0 | BZ259: 0 | CA259: 0 | CB259: 0 | CC259: 0 | CD259: 0 | CE259: 0 | CF259: 0 | CG259: 0 | CH259: 0 | CI259: 0 | CJ259: 0 | CK259: 0 | CL259: 0 | CM259: 0 | CN259: 0 | CO259: 0 | CP259: 0 | CQ259: 0 | CR259: 0 | CS259: 0 | CT259: 0 | CU259: 0 | CV259: 0 | CW259: 0 | CX259: 0 | CY259: 0 | CZ259: 0 | DA259: 0 | DB259: 0 | DC259: 0 | DD259: 0 | DE259: 0 | DF259: 0 | DG259: 0 | DH259: 0 | DI259: 0 | DJ259: 0 | DK259: 0 | DL259: 0 | DM259: 0 | DN259: 0 | DO259: 0 | DP259: 0 | DQ259: 0 | DR259: 0 | DS259: 0 | DT259: 0 | DU259: 0 | DV259: 0 | DW259: 0 | DX259: 0 | DY259: 0 | DZ259: 0 | EA259: 0 | EB259: 0 | EC259: 0 | ED259: 0 | EE259: 0 | EF259: 0 | EG259: 0 | EH259: 0 | EI259: 0 | EJ259: 0 | EK259: 0 | EL259: 0 | EM259: 0 | EN259: 0 | EO259: 0 | EP259: 0 | EQ259: 0 | ER259: 0 | ES259: 0 | ET259: 0 | EU259: 0 | EV259: 0 | EW259: 0 | EX259: 0 | EY259: 0 | EZ259: 0 | FA259: 0 | FB259: 0 | FC259: 0 | FD259: 0 | FE259: 0 | FF259: 0 | FG259: 0 | FH259: 0 | FI259: 0 | FJ259: 0 | FK259: 0 | FL259: 0 | FM259: 0 | FN259: 0 | FO259: 0 | FP259: 0 | FQ259: 0 | FR259: 0 | FS259: 0 | FT259: 0 | FU259: 0 | FV259: 0 | FW259: 0 | FX259: 0 | FY259: 0 | FZ259: 0 | GA259: 0 | GB259: 0 | GC259: 0 | GD259: 0 | GE259: 0 | GF259: 0 | GG259: 0 | GH259: 0 | GI259: 0 | GJ259: 0 | GK259: 0 | GL259: 0 | GM259: 0 | GN259: 0 | GO259: 0 | GP259: 0 | GQ259: 0 | GR259: 0 | GS259: 0 | GT259: 0 | GU259: 0 | GV259: 0 | GW259: 0 | GX259: 0 | GY259: 0 | GZ259: 0 | HA259: 0 | HB259: 0 | HC259: 0 | HD259: 0 | HE259: 0 | HF259: 0 | HG259: 0 | HH259: 0 | HI259: 0 | HJ259: 0 | HK259: 0 | HL259: 0 | HM259: 0 | HN259: 0 | HO259: 0 | HP259: 0 | HQ259: 0 | HR259: 0 | HS259: 0 | HT259: 0 | HU259: 0 | HV259: 0 | HW259: 0 | HX259: 0 | HY259: 0 | HZ259: 0 | IA259: 0 | IB259: 0 | IC259: 0 | ID259: 0 | IE259: 0 | IF259: 0 | IG259: 0 | IH259: 0 | II259: 0 | IJ259: 0 | IK259: 0 | IL259: 0 | IM259: 0 | IN259: 0 | IO259: 0 | IP259: 0 | IQ259: 0 | IR259: 0 | IS259: 0 | IT259: 0 | IU259: 0 | IV259: 0
A260: Félkör alakú alámetszett horony esetén: | T260: 1.496921672
A261: 1 | G261: mZRN = 4*mZN*(cosgZ/2-sinaZ/2) / (p-aZ-gZ-sinaZ+singZ) = | H261: =IF(HOR=1,4*mZN*(COS(yZ_radián/2)-SIN(aZ_radián/2))/(PI()-aZ_radián-yZ_radián-SIN(aZ_radián)+SIN(yZ_radián)),"Nem félkör-horony!") -> Nem félkör-horony! | T261: 1.496921672
A262: Edzés nélküli, alámetszett ékhorony esetén: | T262: 1.496921672
A263: 2 | G263: mZRN = 4*mZL*(1 - sin aZ/2) / (p - aZ - sinaZ ) = | H263: =IF(HOR=2,4*mZL*(1-SIN(aZ_radián/2))/(PI()-aZ_radián-SIN(aZ_radián)),"Nem alám. ékhorony!") -> 0.2141784362 | T263: 1.496921672
A264: Edzett ékhorony esetén: | T264: 1.496921672
A265: 3 | G265: mZRN = mZN / (sin g/2) = | H265: =IF(HOR=3,mZN/(SIN(yZ_radián/2)),"Nem edzett ékhorony!") -> Nem edzett ékhorony! | T265: 1.496921672
T266: 1.496921672
A267: Az áthúzási viszonyszám: | G267: e mZRN * bD = | H267: =EXP(VLOOKUP(HOR,A261:H265,8)*beta_rad) -> 1.959837187 | T267: 1.496921672
... 534 more rows

Sheet Munka1

Sheet Munka2

Sheet Munka3

Sheet Fund.
A7: Beépítési hely: | D7: Xxxx
A8: Terhelési- és egyéb adatok:
A9: Teherbírás: | F9: GQ = | G9: 1025 | H9: kg
A10: Ha a rakodógép behajt a fülkébe, annak tömege: | F10: GT = | G10: 0 | H10: kg
A11: Névleges sebesség: | F11: VKN = | G11: 1 | H11: m/s
A12: Függesztési tényező: | F12: KZU = | G12: 2 | H12: -
A13: Az óránkénti indítások száma: | F13: ZKH = | G13: 180 | H13: 1/h
A14: Emelési magasság (max. 42,0 m): | F14: HQ = | G14: 15 | H14: m
A15: Süllyeszték mélysége: | F15: HSG = | G15: 1.2 | H15: m
A16: Fejmagasság: | F16: HSK = | G16: 3.7 | H16: m
A17: Aknamagasság: | F17: HS = | G17: =+G14+G15+G16 -> 19.9 | H17: m
A18: Fülke tömege: | F18: GK = | G18: 1100 | H18: kg
A19: Kiegyenlítési tényező: | F19: KG = | G19: 0.5 | H19: -
A20: Ellensúly tömege: | F20: GG = KG*GQ + GK = | G20: =G19*G9+G18 -> 1612.5 | H20: kg
A21: Hajtómű tömege: | F21: GW = | G21: 250 | H21: kg
A22: Géptartó gerenda tömege: | F22: GWR= | G22: 60 | H22: kg
A23: Hajtótárcsa tömege: | F23: GD = | G23: 58 | H23: kg
A24: A függesztőkötél névleges átmérője: | F24: DZ = | G24: 11 | H24: mm
A25: Kötélszerkezet: | C25: SEALE + 8,0 B 1570 RF 8 x 19 nyolcpászmás acélsodronykötél.
A26: A függesztőkötél darabszáma: | F26: ZZ = | G26: 4 | H26: db
A27: Egy kötél tömege méterenként: | F27: GZM1 = | G27: 0.22 | H27: kg/m
A28: A kötél anyagának szakítószilárdsága: | F28: sB = | G28: 1570 | H28: N/mm2
A29: Egy kötél min. szakítóereje: | F29: FZM = | G29: 57400 | H29: N
A30: Függesztő kötél kiegyenlítetlen hosszának tömege:
F31: GZ = GZM1 * ZZ * HQ = | G31: =G14*G26*G27 -> 13.2 | H31: kg
A32: Függesztő kötél teljes hosszának tömege:
F33: GZS ~= GZM1 * ZZ * (HS + HSK) * KZU = | G33: =(G17+G16)*G26*G27*G12 -> 41.536 | H33: kg
A34: A kiegyenlítőlánc javasolt folyóméter-tömege: | F34: GUMJ = | G34: =G26*G27*G12 -> 1.76 | H34: kg
A35: Kiegyenlítő lánc tömege méterenként: | F35: GUM = | G35: 0 | H35: kg/m
A36: Kiegyenlítő lánc tömege: | F36: GU = GUM * HQ = | G36: =G35*G14 -> 0 | H36: kg
A37: Függőkábel folyóméterenkénti tömege: | F37: GHM = | G37: 1.25 | H37: kg/m
A38: Függőkábel tömege: | F38: GH = GHM * HQ/2 = | G38: =+G14*G37/2 -> 9.375 | H38: kg
A39: A hajtótárcsa névleges (közép) átmérője: | F39: DD = | G39: 570 | H39: mm
A40: A hajtótárcsa horonykivitele: | G40: 3 | I40: =IF( OR(G40<1,G40>3),"Helytelen adat!"," ") -> 
A41: 1 | B41: Alámetszett félkör alakú, ill. tele félkör alakú horony
A42: 2 | B42: Edzés nélküli, alámetszett ékhorony | I42: =IF( AND(G40=1,G44<25),"gammaZ legalább 25 fokos legyen!"," ") -> 
A43: 3 | B43: Edzett, alámetszés nélküli ékhorony | I43: =IF( AND(G40=2,G45=0),"Alámetszett ékhorony, javítsd!"," ") -> 
A44: A horony ékszöge: | D44: =PI()*G44/180 -> 0.6108652382 | E44: rad = | F44: gZ = | G44: 35 | H44: o | I44: =IF( AND(G40>1,G44<35),"Legalább 35 fokos legyen!"," ") -> 
A45: Az alámetszés szélessége: | F45: BZU = | G45: 8 | H45: mm | I45: =IF(G45>0.8*G24,"BZU>0,8*DZ"," ") ->  | J45: =IF( AND(G40=3,G45>0),"Alámetszés nélküli ékhorony, írj 0-t!"," ") -> Alámetszés nélküli ékhorony, írj 0-t!
A46: A terelés módja (0; 1; 2): | D46: =VLOOKUP(G46,A1504:H1506,2) -> ellensúly terelve ("fülke-hajtás") | G46: 1 | I46: =IF(AND(E60<PI(),G46=0)=TRUE,"nincs szinkronban TZ-vel!"," ") -> 
A47: A terelőtárcsa névleges átmérője: | F47: DR1 = | G47: 440 | H47: mm
A48: A kötéltárcsák (függesztőtárcsák) névleges átmérője: | F48: DR2 = | G48: 440 | H48: mm
A49: Egy kötéltárcsa tömege: | F49: GR = | G49: 44 | H49: kg
A50: Egy kötéltárcsa tehetetlenségi nyomatéka: | F50: IR = | G50: =0.225*G49*(G48/1000)^2 -> 1.91664 | H50: kgm2
A51: A terelőtárcsák száma a fülkei oldalon: | F51: NK = | G51: 2 | H51: db
A52: A terelőtárcsák száma az ellensúly oldalán: | F52: NG = | G52: 1 | H52: db
A53: A terelőtárcsák száma azonos értelmű hajlítással: | F53: Nps = | G53: 2
A54: A terelőtárcsák száma ellentétes értelmű hajlítással: | F54: Npr = | G54: 0
A55: A kötélleeresztés távolsága: | F55: TZ = | G55: 790 | H55: mm | I55: =IF(G55<G39,"TZ < DD, nem megengedett!"," ") -> 
A56: A hajtótárcsa és a terelőtárcsa tengelyeinek függőleges távolsága | I56: =IF(G173>0," ","TZ, DD, DR és HDA nincsenek összhangban!") -> 
A57: (ha nincs ter.: a ht. és a kötélbek. függ. távolsága) | F57: HDA = | G57: 850 | H57: mm
A58: Hurok-hajtás-e? (0, v. 1) | E58: =IF(G58>0,"igen, hurok-hajtás","nem, nem hurokhajtás") -> nem, nem hurokhajtás | G58: 0
A59: A hajtótárcsa átfogási szöge (számítása később):
D60: b = | E60: =F177 -> 2.890645714 | F60: rad = | G60: =H177 -> 165.6217995 | H60: o | I60: =IF(AND(E60=PI(),G46>0)=TRUE,"nincs szinkronban G37 cellával!"," ") -> 
A61: Az ütköző lökete rövidített? ("0" = nem, "1" = igen) | G61: 1
A62: A fülke gyorsulása (lassulása) vészleállításkor: | F62: AKN = | G62: 0.3 | H62: m/s2 | I62: =IF(G62<VLOOKUP(G61,A1669:D1670,4),VLOOKUP(G61,A1669:E1670,5)," ") -> A lassulás legalább 0,8 m/s!
A63: A fülke szélessége (belméret): | F63: BK = | G63: 1300 | H63: mm
A64: A fülke mélysége (hosszúsága, belméret): | F64: TK = | G64: 2000 | H64: mm
A65: A fülke alapterülete: | F65: AKV = BK*TK = | G65: =G63*G64/1000000 -> 2.6 | H65: m2 | I65: =IF(G65>G67,"A fülke alapterülete nagyobb a megengedettnél!"," ") -> A fülke alapterülete nagyobb a megengedettnél!
A66: A fülke max. megengedett alapterülete:
F67: =IF(G9>2500,"AKV max = 5 + (GQ - 2500) * 0,16 /100 =","Az 1.1 táblázatból interpolálással: AKV max =") -> Az 1.1 táblázatból interpolálással: AKV max = | G67: =IF(G9>2500,G1632,G1628) -> 2.45 | H67: m2
A69: A kötélvezetés ábrája:
A97: A hajtótárcsa-tengelyt terhelő erő:
A98: =VLOOKUP(G46,A1504:H1506,7) -> FDR = {[(GK+GQ+GT+GH+GU)/KZU+GD]^2+[(GG+GZS)/KZU]^2-2*[(GK+GQ+GT+GH+GU)/KZU+GD]*[(GG+GZS)/KZU]*cos(beta)}^0,5*g =
H99: =VLOOKUP(G46,A1504:H1506,8) -> 19004.10555 | I99: N
A100: A terelőtárcsa-tengelyt terhelő erő:
A101: =VLOOKUP(G46,A1510:H1512,7) -> FRR = {[(GG+GZS)/KZU+GR]^2+[(GG+GZS)/KZU]^2-2*[(GG+GZS)/KZU+GR]*[(GG+GZS)/KZU]*cos(pi-beta)}^0,5*g =
H102: =VLOOKUP(G46,A1510:H1512,8) -> 2128.156666 | I102: N
A104: Függesztő kötél:
A105: Az előírt biztonsági tényező meghatározása:
A106: =VLOOKUP(G40,A41:B43,2) -> Edzett, alámetszés nélküli ékhorony
A107: Az alámetszési szög:
E108: aZ = 2*arcsin (BZU / DZ) = | F108: =2*ASIN(G45/G24) -> 1.628679884 | G108: rad = | H108: =F108/PI()*180 -> 93.31648355 | I108: °
A110: Táblázat a hajtótárcsák egyenértékű darabszámához:
B111: Ékhornyok ékszögei (gZ) fokban
A112: 1 | B112: 35 | C112: 36 | D112: 37 | E112: 38 | F112: 39 | G112: 40 | H112: 42 | I112: 45
A113: Nequiv (t) | B113: 18.5 | C113: 15.2 | D113: 12.85 | E113: 10.5 | F113: 8.8 | G113: 7.1 | H113: 5.6 | I113: 4
B114: Alámetszett, félkör- vagy ékalakú hornyok (aZ) alámetszési szögei fokban:
A115: 2 | B115: 0 | C115: 75 | D115: 80 | E115: 85 | F115: 90 | G115: 95 | H115: 100 | I115: 105
A116: Nequiv (t) | B116: 1 | C116: 2.5 | D116: 3 | E116: 3.8 | F116: 5 | G116: 6.7 | H116: 10 | I116: 15.2
A119: A hajtótárcsák egyenértékű darabszáma:
A120: Ékhoronynál a táblázatból: | E120: Nequiv (t) = | F120: =IF(G40=3,HLOOKUP(G44,B112:I113,2),"Nem alámetszés nélküli ékhorony!") -> 18.5
A121: N equiv (t) meghatározása interpolációval alámetszett horonynál:
A122: aZ 1 = | B122: =HLOOKUP(H108,B115:I116,1) -> 90 | E122: Nequiv (t)1 = | F122: =HLOOKUP(H108,B115:I116,2) -> 5
A123: aZ 2 = | B123: =HLOOKUP(H108+5,B115:I116,1) -> 95 | E123: Nequiv (t)2 = | F123: =HLOOKUP(H108+5,B115:I116,2) -> 6.7
F124: Nequiv(t) = Nequiv(t)1 + (aZ - aZ1)* (Nequiv(t)2 - Nequiv(t)1) / (aZ2 - aZ1) = | G124: =IF(G40<3,F122+(H108-B122)*(F123-F122)/IF(B123-B122=0,1,(B123-B122)),"alámetszés nélküli ékhorony!") -> alámetszés nélküli ékhorony!
A126: A hajtótárcsa és a terelőtárcsa átmérőviszonya:
F127: Kp = (DD / DR1)4 = | G127: =IF(G47=0,0,(G39/G47)^4) -> 2.816363562
A128: A hajtótárcsa és a kötéltárcsák (függesztőtárcsák) átmérőviszonya:
F129: Kp = (DD / DR2)4 = | G129: =IF(G48=0,0,(G39/G48)^4) -> 2.816363562
A130: A terelőtárcsák egyenértékű száma:
F131: Nequiv (p) = (Nps + 4 * Npr) * Kp = | G131: =IF(G129<G127,(G53+4*G54)*G127,(G53+4*G54)*G129) -> 5.632727123
A132: Az egyenértékű eredő kötéltárcsaszám:
F133: Nequiv = Nequiv(t) + Nequiv(p) = | G133: =IF(G40<3,G124+G131,F120+G131) -> 24.13272712
A134: Az előírt min. biztonsági tényező:
E135: 695,85*106 * Nequiv
A136: Számított: | D136: log | E136: DD 8,567
E137: DZ
C138: 2,6834 -
D139: log | E139: 77,09 * DD -2,894
E140: DZ
B141: IZZ = 10 | G141: = | H141: =10^(2.6834-LOG10(695.85*10^6*G133/(G39/G24)^8.567)/LOG10(77.09*(G39/G24)^-2.894)) -> 17.0581697
A143: Előírt | B143: (min.: | C143: =IF(G26>2,12,16) -> 12 | D143: ): | G143: IZZ = | H143: =IF(H141<C143,C143,H141) -> 17.0581697
A145: A kötél tényleges biztonsági tényezője :
F146: IZ = ZZ * FZM * KZU / [(GK + GQ + GT + GZ*KZU) * g] = | G146: =G26*G29*G12/((G9+G18+G10+G31*G12)*9.81) -> 21.75763604
G147: =IF(G146>H143,">= IZZ, megfelel","< IZZ, nem felel meg.") -> >= IZZ, megfelel
A148: Átmérőviszony: | F148: DD / DZ = | G148: =G39/G24 -> 51.81818182
G149: =IF(G148>=40,">= 40, megfelel","< 40, nem felel meg") -> >= 40, megfelel
F150: DR1 / DZ = | G150: =IF(G47=0,"nem értelmezhető",G47/G24) -> 40
G151: =IF(G150>=40," megfelel","< 40, nem felel meg") -> megfelel
F152: DR2 / DZ = | G152: =IF(G48=0,"nem értelmezhető",G48/G24) -> 40
G153: =IF(G152>=40,"megfelel","< 40, nem felel meg") -> megfelel
A154: Az átfogási szög meghatározása:
F173: TDA = TZ - (DD + DR1) / 2 = | G173: =IF(G57=0,G39-(G39+G47)/2,G55-(G39+G47)/2) -> 285 | H173: mm
E174: d = arc tg (HDA / TDA) = | F174: =IF(G173=0,PI()/2,ATAN(G57/G173)) -> 1.247282106 | G174: rad = | H174: =180*F174/PI() -> 71.46400052 | I174: o
E175: e = arc sin [(DD-DR1) / (2 * (TDA2 + HDA2)0,5)] = | F175: =ASIN(((G39-G47)/(2*(G57^2+G173^2)^0.5))) -> 0.07256728108 | G175: rad = | H175: =180*F175/PI() -> 4.157798937 | I175: o
A176: Átfogási szög a hajtótárcsán: | D176: =IF(G58>0,"(hurok-hajtás)"," ") -> 
E177: =IF(G58>0,"b = 1,5 * p + d + 3 * e =","b = p / 2 + d + e =") -> b = p / 2 + d + e = | F177: =IF(G58>0,1.5*PI()+F174+3*F175,PI()/2+F174+F175) -> 2.890645714 | G177: rad = | H177: =180*F177/PI() -> 165.6217995 | I177: o
A179: A hajtótárcsa és a kötél kapcsolatának ellenőrzése
A180: =VLOOKUP(G40,A41:B43,2) -> Edzett, alámetszés nélküli ékhorony
A181: A fülkébe való berakodás: | D181: (A 125 % terhelésű, illetve az esetlegesen behajtó rakodógéppel terhelt fülke statikusan nem csúszhat meg)
A183: Az statikus súrlódási tényező: | F183: mZL = | G183: 0.1
A184: A látszólagos súrlódási tényező:
A185: Félkör alakú alámetszett horony esetén:
A186: 1 | G186: mZRL = 4*mZL*(cosgZ/2 - sinaZ/2) / (p-aZ-gZ-sinaZ+singZ) = | H186: =IF(G40=1,4*G183*(COS(D44/2)-SIN(F108/2))/(PI()-F108-D44-SIN(F108)+SIN(D44)),"Nem félkör-horony!") -> Nem félkör-horony!
A187: Edzés nélküli, alámetszett ékhorony esetén:
A188: 2 | G188: mZRL = 4*mZL*(1 - sin aZ/2) / (p - aZ - sinaZ ) = | H188: =IF(G40=2,4*G183*(1-SIN(F108/2))/(PI()-F108-SIN(F108)),"Nem alám. ékhorony!") -> Nem alám. ékhorony!
A189: Edzett ékhorony esetén:
A190: 3 | G190: mZRL = mZL / (sin gZ/2) = | H190: =IF(G40=3,G183/(SIN(D44/2)),"Nem edzett ékhorony!") -> 0.3325509523
A191: Az áthúzási viszonyszám:
G192: e mZRL * bD = | H192: =EXP(VLOOKUP(G40,A186:H190,8)*E60) -> 2.615059851
A193: A statikus erők viszonya:
G194: =+IF(G10>0.25*G9,"IZD1 = FZ11 / FZ21 = (GQ + GT + GK + GZ*KZU) / GG =","IZD1 = FZ11 / FZ21 = (1,25*GQ + GK + GZ*KZU) / GG = ") -> IZD1 = FZ11 / FZ21 = (1,25*GQ + GK + GZ*KZU) / GG = | H194: =IF(G10>0.25*G9,(G9+G10+G18+G31*G12)/G20,(1.25*G9+G18+G31*G12)/G20) -> 1.493116279
E196: =IF(H194>H192,"FZ11 / FZ21 > ","FZ11 / FZ21 <=") -> FZ11 / FZ21 <= | F196: e mZRL * bD | H196: =IF(H194>H192,"nem felel meg","megfelel") -> megfelel
A198: Vészleállítás: | C198: (A névleges terhelésű, ill. a terheletlen fülke dinamikus viselkedése)
A199: A kötél sebessége: | F199: VZ = VKN * KZU = | G199: =G11*G12 -> 2 | H199: m/s
A200: A fülke lassulása: | F200: AKN = | G200: =G62 -> 0.3 | H200: m/s2
A201: A mozgási súrlódási tényező: | F201: mZN = 0,1 / (1 + VZ/10) = | G201: =0.1/(1+G199/10) -> 0.08333333333
A202: A látszólagos súrlódási tényező:
A203: Félkör alakú alámetszett horony esetén:
A204: 1 | G204: mZRN = 4*mZN*(cosgZ/2-sinaZ/2) / (p-aZ-gZ-sinaZ+singZ) = | H204: =IF(G40=1,4*G201*(COS(D44/2)-SIN(F108/2))/(PI()-F108-D44-SIN(F108)+SIN(D44)),"Nem félkör-horony!") -> Nem félkör-horony!
A205: Edzés nélküli, alámetszett ékhorony esetén:
A206: 2 | G206: mZRL = 4*mZL*(1 - sin aZ/2) / (p - aZ - sinaZ ) = | H206: =IF(G40=2,4*G201*(1-SIN(F108/2))/(PI()-F108-SIN(F108)),"Nem alám. ékhorony!") -> Nem alám. ékhorony!
A207: Edzett ékhorony esetén:
A208: 3 | G208: mZRN = mZN / (sin g/2) = | H208: =IF(G40=3,G201/(SIN(D44/2)),"Nem edzett ékhorony!") -> 0.2771257936
A210: Az áthúzási viszonyszám: | G210: e mZRN * bD = | H210: =EXP(VLOOKUP(G40,A204:H208,8)*E60) -> 2.227929074
A211: A dinamikus erők viszonya terhelt fülke mellett:
A212: (A fülke az alsó véghelyzetben lefelé haladva lassul)
G213: FZ12 = (GQ+GK)*(g+AKN)/KZU+GZ*(g+KZU*AKN)+4*IR*NK*AKN/DR2 = | H213: =IF(G47=0,(G9+G18)*(9.81+G62)/G12+G31*(9.81+G12*G62),(G9+G18)*(9.81+G62)/G12+G31*(9.81+G12*G62)+4*G50*G51*G62/G47^2) -> 10879.28702 | I213: N
G214: FZ22 = (GG+GU)*(g - AKN)/KZU - 4*IR*NG*AKN/DR2 = | H214: =IF(G47=0,(G20+G36)*(9.81-G62)/G12,(G20+G36)*(9.81-G62)/G12-4*G50*G52*G62/G47^2) -> 7667.437488 | I214: N
G215: IZD2 = FZ12 / FZ22 = | H215: =H213/H214 -> 1.418894779
E216: =IF(H210<H215,"IZD2 >","IZD2 <=") -> IZD2 <= | F216: e mZRN * bD | H216: =IF(H210<H215,"nem felel meg","megfelel") -> megfelel
A218: A dinamikus erők viszonya üres fülke mellett:
A219: (A fülke a felső véghelyzetben felfelé haladva lassul)
G220: FZ12 = (GK+GH+GU)*(g - AKN)/KZU - 4*IR*NK*AKN/DR2 = | H220: =IF(G47=0,(G18+G38+G36)*(9.81-G62)/G12,(G18+G38+G36)*(9.81-G62)/G12-4*G50*G51*G62/G47^2) -> 5275.078101 | I220: N
G221: FZ22 = GG*(g+AKN)/KZU+GZ*(g+KZU*AKN)+4*IR*NG*AKN/DR2 = | H221: =IF(G47=0,G20*(9.81+G62)/G12+G31*(9.81+G12*G62),G20*(9.81+G62)/G12+G31*(9.81+G12*G62)+4*G50*G52*G62/G47^2) -> 8288.599512 | I221: N
G222: IZD3 = FZ22 / FZ12 = | H222: =H221/H220 -> 1.571275221
E223: =IF(H210<H222,"IZD3 >","IZD3 <=") -> IZD3 <= | F223: e mZRN * bD | H223: =IF(H210<H222,"nem felel meg","megfelel") -> megfelel
A225: Elakadt fülke:
B226: (A névleges terhelésű, ill. a terheletlen fülke statikus viselkedése, miközben a fülke ill. az ellensúly az ütközőn ül. A hajtásnak meg kell csúsznia.)
A230: A nyugvó surlódási tényező: | F230: mZP = | G230: 0.2
A231: A látszólagos súrlódási tényező:
A232: Félkör alakú alámetszett horony esetén:
G233: mZRP = 4*mZP*(cosgZ/2 - sinaZ/2)/(p - aZ - gZ - sinaZ+singZ) = | H233: =IF(G40=1,4*G230*(COS(D44/2)-SIN(F108/2))/(PI()-F108-D44-SIN(F108)+SIN(D44)),"Nem félkör-horony!") -> Nem félkör-horony!
A234: Edzett és edzés nélküli ékhorony esetén:
G235: mZRP = mZP / (sin gZ/2) = | H235: =IF(G40>1,G230/(SIN(D44/2)),"Nem ékhorony!") -> 0.6651019047
A237: Az áthúzási viszonyszám: | G237: e mZRP * bD = | H237: =IF(G40=1,EXP(H233*E60),EXP(H235*E60)) -> 6.838538026
A238: A statikus erők viszonya terhelt fülke mellett:
A239: (Az ellensúly ütközőre ült)
G240: IZD4 = FZ13 / FZ23 = (GQ + GK + GH + GU) / GZ*KZU = | H240: =(G9+G18+G38+G36)/(G31*G12) -> 80.84753788
D241: =IF(H237<H240,"IZD4 >","IZD4 <=") -> IZD4 > | E241: e mZRP * bD | G241: =IF(H237<H240,"megcsúszik, megfelel","nem felel meg") -> megcsúszik, megfelel
A242: A statikus erők viszonya üres fülke mellett:
A243: (A fülke ütközőre ült)
G244: IZD5 = FZ24 / FZ14 = (GG + GU) / GZ*KZU = | H244: =(G20+G36)/(G31*G12) -> 61.07954545
D246: =IF(H237<H244,"IZD5 >","IZD5 <=") -> IZD5 > | E246: e mZRP * bD | G246: =IF(H237<H244,"megcsúszik, megfelel","nem felel meg") -> megcsúszik, megfelel
A248: Ellenőrzés horonynyomásra:
A250: Kötélsebesség: | F250: VZ = VKN * KZU = | G250: =G11*G12 -> 2 | H250: m/s
A251: Az óránkénti indítások számától függő tényező:
F252: K = (52 - ZKH2 / 3600 - ZKH / 60) / 50 = | G252: =(52-G13^2/3600-G13/60)/50 -> 0.8
A253: A számított megengedett horonynyomás:
F254: PZZ = K *(12,5+4*VZ)/(1+VZ) = | G254: =G252*(12.5+4*G250)/(1+G250) -> 5.466666667 | H254: N/mm2
A255: A megengedett horonynyomás (max. 8,75 N/mm2 ):
F256: PZZ = | G256: =IF(G254>8.75,8.75,G254) -> 5.466666667 | H256: N/mm2
A257: Egy kötélre eső legnagyobb terhelés:
F258: FZM1 = (GQ + GK + GZS) * g / ZZ * KZU = | G258: =(G9+G18+G31)*9.81/(G26*G12) -> 2621.96775 | H258: N
A259: A horonyalak-tényező:
A260: Félkör alakú, alámetszett horony esetén:
F261: KDR = 8 * cos (aZ/2) / (p - aZ - sin aZ) = | G261: =IF(G40=1,8*COS(F108/2)/(PI()-F108-SIN(F108)), "Nem félkör-horony!") -> Nem félkör-horony!
A262: Edzett és edzés nélküli ékhorony esetén:
F263: KDR = 4,5 / sin (gZ / 2) = | G263: =IF(G40>1,4.5/SIN(D44/2),"Nem ékhorony!") -> 14.96479286
A264: A fellépő horonynyomás:
F265: PZ = KDR * FZM1 / (DZ * DD) = | G265: =IF(G40>1,G263*G258/(G24*G39),G261*G258/(G24*G39)) -> 6.257927313 | H265: N/mm2
E267: =IF(G265<G256,"PZ<","PZ > ") -> PZ > | F267: PZZ | G267: =IF(G265>G256,"nem felel meg"," megfelel") -> nem felel meg
A271: Vezetősín:
A273: A fülkei vezetősín
A274: Adatok:
A275: A sín sorszáma (1 - 20): | G275: 12
A276: A sín ISO-kódja (T…/A = húzott, T…/B = forgácsolt): | G276: =VLOOKUP(G275,A1457:I1476,2) -> T 125/B
A277: A sín keresztmetszeti méretei: | G277: =VLOOKUP(G275,A1457:I1476,3) -> 125x82x16 | H277: mm
A278: A sínek száma: | F278: ZF = | G278: 2 | H278: db
... 1023 more rows

Sheet kötél
A1: kötélazonositó | B1: kötélszerkezet | C1: sodrastipus | D1: kötélátméro | E1: pasznaszam | F1: kötélszakitószilárdság | G1: sodrsirany | H1: betetfajta | I1: meret | J1: feluletkezeles | K1: számitottszakitóero | L1: minimálisszakitoero | M1: kötélfmsúly
A2: 20 | B2: NINCS | D2: 0 | F2: 0 | K2: 0 | L2: 0 | M2: 0
A3: 21 | B3: Acélbetétes gumi v. poliuretán_SMT-PV30 | D3: 1.73 | F3: 1770 | I3: 12 | K3: 0 | L3: 42 | M3: 0.25
A4: 17 | B4: Acélbetétes gumi v. poliuretán_SMT-PV40 | D4: 1.73x16 | F4: 1770 | I4: 16 | K4: 0 | L4: 56 | M4: 0.33
A5: 22 | B5: Acélbetétes gumi v. poliuretán_ SMT-PV50 | D5: 1.73x20 | F5: 1770 | I5: 20 | K5: 0 | L5: 70 | M5: 0.42
A6: 23 | B6: Acélbetétes gumi v. poliuretán_SMT-PV60 | D6: 1.73x24 | F6: 0 | I6: 24 | K6: 0 | L6: 84 | M6: 0.5
A7: 4 | B7: Seale | C7: + | D7: 6 | E7: H | F7: 1570 | G7: J | H7: K | I7: 6x19 | J7: - | K7: 21.7 | L7: 18.9 | M7: 0.13
A8: 14 | B8: Seale | C8: + | D8: 6.5 | E8: B | F8: 1770 | G8: J | H8: F | I8: 6x19 | J8: - | K8: 26.7 | L8: 23.5 | M8: 0.154
A9: 19 | B9: PAWO | D9: 6.5 | F9: 0 | K9: 31.5 | L9: 23.5 | M9: 0.17
A10: 15 | B10: DRAKO 250T | C10: + | D10: 8 | F10: 1570 | G10: J | H10: F | I10: 8x19 | J10: - | K10: 49.4 | L10: 38.8 | M10: 0.27
A11: 1 | B11: Seale | C11: + | D11: 8 | E11: B | F11: 1770 | G11: J | H11: K | I11: 8x19 | J11: ZN | K11: 35.3 | L11: 30.4 | M11: 0.22
A12: 5 | B12: Seale | C12: + | D12: 8 | E12: B | F12: 1570 | G12: J | H12: F | I12: 8x19 | J12: - | K12: 33 | L12: 28.21 | M12: 0.22
A13: 6 | B13: Seale | C13: + | D13: 9 | E13: B | F13: 1570 | G13: J | H13: F | I13: 8x19 | J13: - | K13: 43.4 | L13: 37.3 | M13: 0.29
A14: 18 | B14: DRAKO 250T | C14: + | D14: 10 | F14: 1570 | G14: J | H14: F | I14: 8x19 | J14: - | K14: 60.6 | L14: 52.846 | M14: 0.42
A15: 2 | B15: Seale | C15: + | D15: 10 | E15: B | F15: 1570 | G15: J | H15: F | I15: 8x19 | J15: - | K15: 55.1 | L15: 52.846 | M15: 0.36
A16: 16 | B16: DRAKO 250T | C16: + | D16: 11 | E16: B | F16: 1570 | G16: J | H16: K | I16: 8x19 | J16: - | K16: 95.7 | L16: 75.1 | M16: 0.512
A17: 3 | B17: Seale | C17: + | D17: 11 | E17: B | F17: 1570 | G17: J | H17: F | I17: 8x19 | J17: - | K17: 66.7 | L17: 57.4 | M17: 0.407
A18: 13 | B18: Saele | C18: + | D18: 12 | E18: B | F18: 1570 | G18: J | H18: F | I18: 8x19 | J18: - | K18: 79.5 | L18: 68.4 | M18: 0.485
A19: 7 | B19: Seale | C19: + | D19: 13 | E19: B | F19: 1570 | G19: J | H19: F | I19: 8x19 | J19: - | K19: 93.1 | L19: 80 | M19: 0.569
A20: 8 | B20: Seale | C20: + | D20: 15 | E20: B | F20: 1570 | G20: J | H20: F | I20: 8x19 | J20: - | K20: 121 | L20: 104 | M20: 0.78
A21: 9 | B21: Seale | C21: + | D21: 15.5 | E21: B | F21: 1570 | G21: J | H21: F | I21: 8x19 | J21: - | K21: 129 | L21: 111 | M21: 0.81
A22: 10 | B22: Seale | C22: + | D22: 16 | E22: B | F22: 1570 | G22: J | H22: F | I22: 8x19 | J22: - | K22: 131.5 | L22: 113 | M22: 0.88
A23: 11 | B23: Seale | C23: + | D23: 17 | E23: B | F23: 1570 | G23: J | H23: F | I23: 8x19 | J23: - | K23: 154.5 | L23: 133 | M23: 0.98
A24: 12 | B24: Seale | C24: + | D24: 19 | E24: B | F24: 1570 | G24: J | H24: F | I24: 8x19 | J24: - | K24: 0 | L24: 159 | M24: 1.24

Sheet TeherbÍrás
A1: teherbirás | B1: személyekszáma | C1: felvonotipus
A2: 1350 | B2: 0 | C2: 17,22,126,
A3: 100 | B3: 0 | C3: 17,22,28,29,
A4: 225 | B4: 3 | C4: 28,47,55,
A5: 230 | B5: 0 | C5: 92,
A6: 250 | B6: 0 | C6: 4,17,22,28,
A7: 300 | B7: 4 | C7: 4,17,22,28,35,55,92,51,
A8: 320 | B8: 4 | C8: 10,22,28,29,37,47,51,64,65,92,
A9: 375 | B9: 5 | C9: 22,47,63,28,
A10: 385 | B10: 0 | C10: 82,
A11: 400 | B11: 5 | C11: 8,9,12,22,23,28,29,32,44,47,56,31,
A12: 430 | B12: 5 | C12: 4,
A13: 450 | B13: 6 | C13: 10,11,13,14,15,16,22,23,12,28,29,37,46,47,53,31,51,1,
A14: 475 | B14: 0 | C14: 23,
A15: 480 | B15: 6 | C15: 12,22,28,29,32,47,1,
A16: 500 | B16: 0 | C16: 22,28,47,73,
A17: 525 | B17: 0 | C17: 22,
A18: 535 | B18: 7 | C18: 8,9,12,23,47,
A19: 550 | B19: 7 | C19: 10,11,
A20: 600 | B20: 8 | C20: 28,28,86,51,
A21: 625 | B21: 8 | C21: 8,9,12,13,
A22: 630 | B22: 8 | C22: 1,10,11,12,13,14,15,22,16,23,28,29,31,32,33,36,44,45,47,51,37,76,33,28,48,69,83,49,42,88,97,113,114,118,122,125,93,8,9,127,
A23: 650 | B23: 8 | C23: 28,
A24: 675 | B24: 9 | C24: 8,9,12,23,47,29,127,
A25: 680 | B25: 9 | C25: 123,
A26: 750 | B26: 10 | C26: 22,28,51,23,
A27: 800 | B27: 10 | C27: 8,9,10,11,12,13,14,15,16,33,36,28,47,49,93,104,112,23,
A28: 825 | B28: 0 | C28: 22,
A29: 850 | B29: 11 | C29: 22,28,29,51
A30: 900 | B30: 12 | C30: 8,9,10,11,22,23,28,29,41,47,121,51n
A31: 1000 | B31: 13 | C31: 3,9,8,10,11,12,13,14,15,22,23,16,28,29,31,32,33,40,42,43,47,49,60,69,48,85,88,49,93,98,51,105,110,24,
A32: 1020 | B32: 13 | C32: 31,47,
A33: 1050 | B33: 14 | C33: 22,28,28,69,
A34: 1075 | B34: 14 | C34: 22,49,
A35: 1125 | B35: 15 | C35: 8,9,23,
A36: 1150 | B36: 15 | C36: 28,38,32,
A37: 1200 | B37: 16 | C37: 22,59,69,51,
A38: 1250 | B38: 16 | C38: 22,28,47,58,49
A39: 1275 | B39: 17 | C39: 12,23,14,15,22,18,28,29,33,31,93,24,
A40: 1425 | B40: 0 | C40: 22,
A41: 1500 | B41: 20 | C41: 22,28,29,34,43,42,
A42: 1600 | B42: 21 | C42: 2,12,13,14,15,18,22,20,19,28,29,33,39,47,31,67,70,74,93,51,94,69,8,32,111,
A43: 1675 | B43: 25 | C43: 3,
A44: 1800 | B44: 0 | C44: 28,33,93,
A45: 1900 | B45: 25 | C45: 28,
A46: 2000 | B46: 26 | C46: 18,20,22,21,24,25,26,19,28,29,33,68,84,73,51,93,120,
A47: 2500 | B47: 33 | C47: 18,20,22,21,24,25,26,19,28,29,32,33,54,69,93,101,31,
A48: 2625 | B48: 35 | C48: 28,
A49: 2800 | B49: 0 | C49: 72,
A50: 3000 | B50: 40 | C50: 18,28,29,50,22,24,
A51: 3300 | B51: 42 | C51: 18,28,29,
A52: 3750 | B52: 0 | C52: 51,
A53: 4000 | B53: 53 | C53: 18,28,29,52,
A54: 4500 | B54: 60 | C54: 31,
A55: 4730 | B55: 63 | C55: 28,
A56: 4800 | B56: 0 | C56: 27,
A57: 5000 | B57: 0 | C57: 22,28,29,91,
A58: 6000 | B58: 0 | C58: 57,81,91,27,102,107,109,124,51,
A59: 8000 | B59: 0 | C59: 87,
A60: 9300 | B60: 0 | C60: 27,
A61: 10000 | B61: 0 | C61: 69,
A62: 13500 | B62: 0 | C62: 27,
A63: 3500 | B63: 46 | C63: 24,
